Workbook

Sheet 最適化計算
A1: Vas | B1: 4.7 | C1: Ｆ | D1: 目標 | E1: Po | F1: IPoI | G1: dB | H1: iVi | I1: jVi | J1: iILo | K1: jILo | L1: iIc1 | M1: jIC1 | N1: iV1 | O1: jV1 | P1: iIL1 | Q1: jIL1 | R1: iIC2 | S1: jIC2 | T1: iV2 | U1: jV2 | V1: iIL2 | W1: jIL2 | X1: iIC3 | Y1: jIC3 | Z1: iV3 | AA1: jV3 | AB1: ω | AC1: Poo | AD1: ΔP^2
A2: Fo | B2: 75 | C2: =B27/2 -> 17.5 | D2: =LOG(AC2)*20 -> -38.02100987 | E2: =F2/SQRT(H2^2+I2^2) -> 0.01379397691 | F2: =SQRT((J2-1)^2+K2^2)*C2*B$14 -> 0.0001348211307 | G2: =LOG(E2)*20 -> -37.20621011 | H2: =N2+B$15*J2-(C2*B$14-1/C2/B$13)*K2 -> 0.005961729127 | I2: =O2+B$15*K2+(C2*B$14-1/C2/B$13)*J2 -> -0.00774513795 | J2: =L2+P2 -> 0.7974621605 | K2: =M2+Q2 -> 0.0215039847 | L2: =-C2*B$16*O2 -> -0.05066477084 | M2: =C2*B$16*N2 -> 0.0078238009 | N2: =T2+B$18*P2-C2*B$17*Q2 -> 0.0001967021826 | O2: =U2+B$18*Q2+C2*B$17*P2 -> 0.001273788934 | P2: =R2+V2 -> 0.8481269314 | Q2: =S2+W2 -> 0.0136801838 | R2: =-C2*B$19*U2 -> -0.09517248279 | S2: =C2*B$19*T2 -> 0.008917806837 | T2: =Z2+V2*B$21-C2*B$20*W2 -> 5.717983418e-05 | U2: =AA2+B$21*W2+C2*B$20*V2 -> 0.0006102337586 | V2: =1+X2 -> 0.9432994141 | W2: =Y2 -> 0.004762376963 | X2: =-C2*B$22*AA2 -> -0.05670058585 | Y2: =C2*B$22*Z2 -> 0.004762376963 | Z2: =B$24 -> 2.353199224e-05 | AA2: =C2*B$23 -> 0.0002801705443 | AB2: =C2 -> 17.5 | AC2: =SQRT(((AB2/B$32-B$32/AB2)^2*B$33*B$33+(B$34)^2)/((AB2/B$32-B$32/AB2)^2*B$33*B$33+1)/((1-B$36*B$36/AB2/AB2)^2+(B$36/AB2/B$37)^2)*((B$40)^2+(AB2/B$39)^2)/(1+(AB2/B$39)^2))*SQRT(1/((1-B$36*B$36/AB2/AB2)^2+(B$36/AB2/B$37*2.41)^2)) -> 0.01255883939 | AD2: =(AC2-E2)^2 -> 1.525564681e-06
A3: Qo | B3: 0.41 | C3: =C2*1.02 -> 17.85 | D3: =LOG(AC3)*20 -> -37.12027926 | E3: =F3/SQRT(H3^2+I3^2) -> 0.01504122052 | F3: =SQRT((J3-1)^2+K3^2)*C3*B$14 -> 0.0001427962085 | G3: =LOG(E3)*20 -> -36.45433843 | H3: =N3+B$15*J3-(C3*B$14-1/C3/B$13)*K3 -> 0.00590436339 | I3: =O3+B$15*K3+(C3*B$14-1/C3/B$13)*J3 -> -0.007434247872 | J3: =L3+P3 -> 0.7896366746 | K3: =M3+Q3 -> 0.02184367056 | L3: =-C3*B$16*O3 -> -0.05248457103 | M3: =C3*B$16*N3 -> 0.007914228612 | N3: =T3+$B$18*P3-C3*$B$17*Q3 -> 0.0001950741883 | O3: =U3+$B$18*Q3+C3*$B$17*P3 -> 0.0012936681 | P3: =R3+V3 -> 0.8421212456 | Q3: =S3+W3 -> 0.01392944194 | R3: =-C3*$B$19*U3 -> -0.09888746487 | S3: =C3*$B$19*T3 -> 0.009071817441 | T3: =Z3+V3*$B$21-C3*$B$20*W3 -> 5.702679454e-05 | U3: =AA3+$B$21*W3+C3*$B$20*V3 -> 0.000621621321 | V3: =1+X3 -> 0.9410087105 | W3: =Y3 -> 0.004857624503 | X3: =-C3*$B$22*AA3 -> -0.05899128952 | Y3: =C3*$B$22*Z3 -> 0.004857624503 | Z3: =$B$24 -> 2.353199224e-05 | AA3: =C3*$B$23 -> 0.0002857739552 | AB3: =C3 -> 17.85 | AC3: 0.01393112012 | AD3: =(AC3-E3)^2 -> 1.2323229e-06
A4: V1 | B4: 2.272848888 | C4: =C3*1.02 -> 18.207 | D4: -36.2182308 | E4: =F4/SQRT(H4^2+I4^2) -> 0.01640707234 | F4: =SQRT((J4-1)^2+K4^2)*C4*B$14 -> 0.0001512338721 | G4: =LOG(E4)*20 -> -35.69937814 | H4: =N4+B$15*J4-(C4*B$14-1/C4/B$13)*K4 -> 0.005844891348 | I4: =O4+B$15*K4+(C4*B$14-1/C4/B$13)*J4 -> -0.007127513049 | J4: =L4+P4 -> 0.7815241112 | K4: =M4+Q4 -> 0.02218476185 | L4: =-C4*B$16*O4 -> -0.05435953399 | M4: =C4*B$16*N4 -> 0.008002566743 | N4: =T4+$B$18*P4-C4*$B$17*Q4 -> 0.000193383916 | O4: =U4+$B$18*Q4+C4*$B$17*P4 -> 0.001313610982 | P4: =R4+V4 -> 0.8358836452 | Q4: =S4+W4 -> 0.01418219511 | R4: =-C4*$B$19*U4 -> -0.1027418172 | S4: =C4*$B$19*T4 -> 0.009227418117 | T4: =Z4+V4*$B$21-C4*$B$20*W4 -> 5.68675721e-05 | U4: =AA4+$B$21*W4+C4*$B$20*V4 -> 0.0006331866208 | V4: =1+X4 -> 0.9386254624 | W4: =Y4 -> 0.004954776993 | X4: =-C4*$B$22*AA4 -> -0.06137453762 | Y4: =C4*$B$22*Z4 -> 0.004954776993 | Z4: 2.353199224e-05 | AA4: =C4*$B$23 -> 0.0002914894343 | AB4: 18.207 | AC4: 0.01545569219 | AD4: 9.051241927e-07
A5: Fb1 | B5: 99.38477413 | C5: 18.57114 | D5: -35.31484557 | E5: 0.01790362373 | F5: 0.0001601598748 | G5: -34.94118116 | H5: 0.005783244995 | I5: -0.00682488492 | J5: 0.7731152236 | K5: 0.02252697194 | L5: -0.05629042046 | M5: 0.008088549951 | N5: 0.0001916291378 | O5: 0.001333599323 | P5: 0.829405644 | Q5: 0.01443842199 | R5: -0.106740287 | S5: 0.009384549455 | T5: 5.670191707e-05 | U5: 0.0006449301515 | V5: 0.9361459311 | W5: 0.005053872533 | X5: -0.06385406894 | Y5: 0.005053872533 | Z5: 2.353199224e-05 | AA5: 0.000297319223 | AB5: 18.57114 | AC5: 0.01714974715 | AD5: 5.683299095e-07
A6: Qb1 | B6: 25 | C6: 18.9425628 | D6: -34.41010763 | E6: 0.01954431544 | F6: 0.0001696012859 | G6: -34.17959073 | H6: 0.005719354945 | I6: -0.006526320495 | J6: 0.7644005794 | K6: 0.02286999073 | L6: -0.05827790661 | M6: 0.008171895467 | N6: 0.0001898075592 | O6: 0.0013536134 | P6: 0.822678486 | Q6: 0.01469809526 | R6: -0.1108877406 | S6: 0.00954314528 | T6: 5.652956958e-05 | U6: 0.0006568522292 | V6: 0.9335662267 | W6: 0.005154949983 | X6: -0.06643377332 | Y6: 0.005154949983 | Z6: 2.353199224e-05 | AA6: 0.0003032656075 | AB6: 18.9425628 | AC6: 0.01903244653 | AD6: 2.620097759e-07
A7: V2 | B7: 8.912039873 | C7: 19.32141406 | D7: -33.50400464 | E7: 0.02134410513 | F7: 0.0001795865457 | G7: -33.41444097 | H7: 0.005653150485 | I7: -0.006231782542 | J7: 0.7553705682 | K7: 0.02321348332 | L7: -0.06032257189 | M7: 0.008252302172 | N7: 0.000187916819 | O7: 0.001373631938 | P7: 0.8156931401 | Q7: 0.01496118115 | R7: -0.1151891621 | S7: 0.009703132164 | T7: 5.635025925e-05 | U7: 0.0006689529772 | V7: 0.9308823022 | W7: 0.005258048983 | X7: -0.06911769777 | Y7: 0.005258048983 | Z7: 2.353199224e-05 | AA7: 0.0003093309196 | AB7: 19.32141406 | AC7: 0.02112514837 | AD7: 4.794206049e-08
A8: Fb2 | B8: 74.93315317 | C8: 19.70784234 | D8: -32.59652862 | E8: 0.02331965836 | F8: 0.0001901455204 | G8: -32.64555633 | H8: 0.005584559635 | I8: -0.005941239772 | J8: 0.74601541 | K8: 0.02355708852 | L8: -0.0624248857 | M8: 0.008329449631 | N8: 0.0001859544881 | O8: 0.001393632014 | P8: 0.8084402957 | Q8: 0.01522763889 | R8: -0.1196496516 | S8: 0.009864428926 | T8: 5.616370478e-05 | U8: 0.0006812323105 | V8: 0.9280899472 | W8: 0.005363209963 | X8: -0.07191005276 | Y8: 0.005363209963 | Z8: 2.353199224e-05 | AA8: 0.000315517538 | AB8: 19.70784234 | AC8: 0.02345165891 | AD8: 1.742414621e-08
A9: Qb2 | B9: 40 | C9: 20.10199918 | D9: -31.68767682 | E9: 0.02548956628 | F9: 0.0002013095578 | G9: -31.87275108 | H9: 0.005513509222 | I9: -0.005654667048 | J9: 0.7363251655 | K9: 0.02390041734 | L9: -0.06458519284 | M9: 0.008402997093 | N9: 0.0001839180696 | O9: 0.001413588968 | P9: 0.8009103583 | Q9: 0.01549742025 | R9: -0.1242744228 | S9: 0.01002694609 | T9: 5.596961352e-05 | U9: 0.0006936899185 | V9: 0.9251847811 | W9: 0.005470474162 | X9: -0.07481521889 | Y9: 0.005470474162 | Z9: 2.353199224e-05 | AA9: 0.0003218278888 | AB9: 20.10199918 | AC9: 0.0260385118 | AD9: 3.013411766e-07
A10: V3 | B10: 11.56450435 | C10: 20.50403917 | D10: -30.77745279 | E10: 0.02787459446 | F10: 0.0002131115427 | G10: -31.09582885 | H10: 0.005439924967 | I10: -0.00537204559 | J10: 0.7262897483 | K10: 0.0242430514 | L10: -0.06680369767 | M10: 0.008472582452 | N10: 0.0001818049982 | O10: 0.001433476299 | P10: 0.7930934459 | Q10: 0.01577046895 | R10: -0.1290688003 | S10: 0.01019058531 | T10: 5.576768096e-05 | U10: 0.0007063252466 | V10: 0.9221622463 | W10: 0.005579883645 | X10: -0.07783775373 | Y10: 0.005579883645 | Z10: 2.353199224e-05 | AA10: 0.0003282644466 | AB10: 20.50403917 | AC10: 0.02891527723 | AD10: 1.083020626e-06
A11: Fb3 | B11: 73.49271229 | C11: 20.91411995 | D11: -29.86586761 | E11: 0.03049796747 | F11: 0.0002255859536 | G11: -30.31458206 | H11: 0.005363731583 | I11: -0.005093363205 | J11: 0.7158989385 | K11: 0.02458454124 | L11: -0.06908044692 | M11: 0.00853782117 | N11: 0.0001796126403 | O11: 0.00145326556 | P11: 0.7849793855 | Q11: 0.01604672007 | R11: -0.1340382156 | S11: 0.01035523875 | T11: 5.555759033e-05 | U11: 0.0007191374769 | V11: 0.919017601 | W11: 0.005691481318 | X11: -0.08098239898 | Y11: 0.005691481318 | Z11: 2.353199224e-05 | AA11: 0.0003348297355 | AB11: 20.91411995 | AC11: 0.03211490335 | AD11: 2.614481618e-06
A12: Qb3 | B12: 50 | C12: 21.33240235 | D12: -28.95294142 | E12: 0.0333856951 | F12: 0.0002387689174 | G12: -29.52879154 | H12: 0.005284852889 | I12: -0.004818614513 | J12: 0.705142399 | K12: 0.02492440458 | L12: -0.0714153109 | M12: 0.00859830517 | N12: 0.000177338294 | O12: 0.001472926251 | P12: 0.7765577099 | Q12: 0.01632609941 | R12: -0.1391882022 | S12: 0.01052078847 | T12: 5.533901204e-05 | U12: 0.0007321255077 | V12: 0.9157459121 | W12: 0.005805310944 | X12: -0.0842540879 | Y12: 0.005805310944 | Z12: 2.353199224e-05 | AA12: 0.0003415263302 | AB12: 21.33240235 | AC12: 0.03567409209 | AD12: 5.236760776e-06
A13: Co | B13: =B1 -> 4.7 | C13: 21.7590504 | D13: -28.03870517 | E13: 0.03656694647 | F13: 0.0002526982647 | G13: -28.73822608 | H13: 0.005203211942 | I13: -0.004547801194 | J13: 0.6940096929 | K13: 0.02526212453 | L13: -0.07380796317 | M13: 0.008653601689 | N13: 0.0001749791897 | O13: 0.001492425704 | P13: 0.7678176561 | Q13: 0.01660852284 | R13: -0.1445243908 | S13: 0.01068710567 | T13: 5.511160319e-05 | U13: 0.0007452879312 | V13: 0.9123420469 | W13: 0.005921417163 | X13: -0.08765795305 | Y13: 0.005921417163 | Z13: 2.353199224e-05 | AA13: 0.0003483568568 | AB13: 21.7590504 | AC13: 0.03963371131 | AD13: 9.405046575e-06
A14: Lo | B14: =1/B2/B2/B1 -> 3.78250591e-05 | C14: 22.1942314 | D14: -27.12320283 | E14: 0.04007447981 | F14: 0.0002674135829 | G14: -27.94264213 | H14: 0.005118731184 | I14: -0.004280932238 | J14: 0.6824903049 | K14: 0.02559714764 | L14: -0.07625785849 | M14: 0.008703252096 | N14: 0.0001725324904 | O14: 0.00151172896 | P14: 0.7587481634 | Q14: 0.01689389555 | R14: -0.1500525022 | S14: 0.01085405004 | T14: 5.487500702e-05 | U14: 0.00075862301 | V14: 0.9088006656 | W14: 0.006039845506 | X14: -0.09119933435 | Y14: 0.006039845506 | Z14: 2.353199224e-05 | AA14: 0.0003553239939 | AB14: 22.1942314 | AC14: 0.04403924435 | AD14: 1.571935786e-05 | AG14: V1 | AH14: 2.210051457 | AI14: 2.219303883 | AJ14: 2.240572683 | AK14: 2.249553936 | AL14: 2.256567986 | AM14: 2.261529773 | AN14: 2.265397592 | AO14: 2.268445579 | AP14: 2.270887326 | AQ14: 2.272848888
A15: Ro | B15: =1/B13/B3/B2 -> 0.006919218128 | C15: 22.63811603 | D15: -26.206494 | E15: 0.04394513654 | F15: 0.0002829562688 | G15: -27.14178364 | H15: 0.00503133261 | I15: -0.004018024208 | J15: 0.6705736639 | K15: 0.025928882 | L15: -0.07876420882 | M15: 0.008746770684 | N15: 0.0001699952931 | O15: 0.001530798651 | P15: 0.7493378727 | Q15: 0.01718211132 | R15: -0.1557783398 | S15: 0.0110214689 | T15: 5.462885236e-05 | U15: 0.0007721286522 | V15: 0.9051162125 | W15: 0.006160642417 | X15: -0.09488378746 | Y15: 0.006160642417 | Z15: 2.353199224e-05 | AA15: 0.0003624304738 | AB15: 22.63811603 | AC15: 0.04894127734 | AD15: 2.496142292e-05 | AG15: fb1 | AH15: 99.99550554 | AI15: 99.59524732 | AJ15: 99.51109784 | AK15: 99.44402504 | AL15: 99.40969913 | AM15: 99.38840726 | AN15: 99.37774938 | AO15: 99.37470058 | AP15: 99.37750391 | AQ15: 99.38477413
A16: C1 | B16: =B4 -> 2.272848888 | C16: 23.09087835 | D16: -25.28865706 | E16: 0.04822040965 | F16: 0.0002993695775 | G16: -26.33538209 | H16: 0.004940937953 | I16: -0.003759101511 | J16: 0.6582491694 | K16: 0.02625669511 | L16: -0.08132595753 | M16: 0.008783643432 | N16: 0.00016736463 | O16: 0.001549594869 | P16: 0.7395751269 | Q16: 0.01747305168 | R16: -0.1617077806 | S16: 0.01118919641 | T16: 5.437275306e-05 | U16: 0.0007858023847 | V16: 0.9012829075 | W16: 0.006283855265 | X16: -0.09871709248 | Y16: 0.006283855265 | Z16: 2.353199224e-05 | AA16: 0.0003696790833 | AB16: 23.09087835 | AC16: 0.05439602281 | AD16: 3.813819794e-05 | AG16: V2 | AH16: 8.593324639 | AI16: 8.661871984 | AJ16: 8.716623222 | AK16: 8.762180972 | AL16: 8.799484411 | AM16: 8.830430981 | AN16: 8.856342626 | AO16: 8.878157218 | AP16: 8.896548283 | AQ16: 8.912039873
A17: L1 | B17: =1/B5/B5/B4 -> 4.454405271e-05 | C17: 23.55269592 | D17: -24.36979301 | E17: 0.05294709779 | F17: 0.0003166986699 | G17: -25.5231568 | H17: 0.004847468901 | I17: -0.00350419668 | J17: 0.6455062204 | K17: 0.0265799118 | L17: -0.08394175131 | M17: 0.008813326732 | N17: 0.0001646374699 | O17: 0.001568075027 | P17: 0.7294479718 | Q17: 0.01776658507 | R17: -0.1678467652 | S17: 0.0113570527 | T17: 5.410630734e-05 | U17: 0.0007996413246 | V17: 0.897294737 | W17: 0.00640953237 | X17: -0.102705263 | Y17: 0.00640953237 | Z17: 2.353199224e-05 | AA17: 0.000377072665 | AB17: 23.55269592 | AC17: 0.06046587609 | AD17: 5.65320271e-05 | AG17: fb2 | AH17: 75.08189884 | AI17: 75.01872125 | AJ17: 74.94975554 | AK17: 74.91804743 | AL17: 74.9037293 | AM17: 74.90104622 | AN17: 74.9048222 | AO17: 74.91238323 | AP17: 74.9221362 | AQ17: 74.93315317
A18: R1 | B18: =1/B16/B6/B5 -> 0.0001770800247 | C18: 24.02374984 | D18: -23.45003016 | E18: 0.05817805778 | F18: 0.0003349906552 | G18: -24.70481563 | H18: 0.004750847325 | I18: -0.003253350659 | J18: 0.6323342487 | K18: 0.02689781202 | L18: -0.08660990994 | M18: 0.008835246106 | N18: 0.0001618107206 | O18: 0.001586193726 | P18: 0.7189441586 | Q18: 0.01806256591 | R18: -0.1742012857 | S18: 0.0115248429 | T18: 5.382909721e-05 | U18: 0.0008136421493 | V18: 0.8931454444 | W18: 0.006537723018 | X18: -0.1068545556 | Y18: 0.006537723018 | Z18: 2.353199224e-05 | AA18: 0.0003846141183 | AB18: 24.02374984 | AC18: 0.06721999754 | AD18: 8.175667462e-05 | AG18: V3 | AH18: 11.20386746 | AI18: 11.24808989 | AJ18: 11.31181747 | AK18: 11.36453028 | AL18: 11.41229964 | AM18: 11.45360262 | AN18: 11.48898073 | AO18: 11.51885606 | AP18: 11.54382997 | AQ18: 11.56450435
A19: C2 | B19: =B7 -> 8.912039873 | C19: 24.50422484 | D19: -22.52952979 | E19: 0.0639730696 | F19: 0.0003542946302 | G19: -23.8800562 | H19: 0.004650995549 | I19: -0.003006613106 | J19: 0.6187227542 | K19: 0.02720962852 | L19: -0.08932839366 | M19: 0.008848794896 | N19: 0.0001588812317 | O19: 0.001603902607 | P19: 0.7080511478 | Q19: 0.01836083363 | R19: -0.1807773725 | S19: 0.01169235615 | T19: 5.35406878e-05 | U19: 0.000827801064 | V19: 0.8888285203 | W19: 0.006668477478 | X19: -0.1111714797 | Y19: 0.006668477478 | Z19: 2.353199224e-05 | AA19: 0.0003923064006 | AB19: 24.50422484 | AC19: 0.07473490907 | AD19: 0.0001158171888 | AG19: fb3 | AH19: 73.98315518 | AI19: 73.86800382 | AJ19: 73.81056584 | AK19: 73.7411159 | AL19: 73.68099312 | AM19: 73.62827223 | AN19: 73.58380379 | AO19: 73.54688197 | AP19: 73.51672154 | AQ19: 73.49271229
A20: L2 | B20: =1/B8/B8/B7 -> 1.998365222e-05 | C20: 24.99430933 | D20: -21.6084931 | E20: 0.07039982893 | F20: 0.0003746617122 | G20: -23.04856792 | H20: 0.004547836634 | I20: -0.002764042688 | J20: 0.6046613458 | K20: 0.02751454454 | L20: -0.09209476801 | M20: 0.008853332949 | N20: 0.000155845797 | O20: 0.001621150205 | P20: 0.6967561138 | Q20: 0.01866121159 | R20: -0.1875810787 | S20: 0.01185936457 | T20: 5.324062665e-05 | U20: 0.0008421137678 | V20: 0.8843371925 | W20: 0.006801847028 | X20: -0.1156628075 | Y20: 0.006801847028 | Z20: 2.353199224e-05 | AA20: 0.0004001525286 | AB20: 24.99430933 | AC20: 0.08309508667 | AD20: 0.0001611695689 | AG20: Point | AH20: 0.06110874381 | AI20: 0.05253006932 | AJ20: 0.04750123151 | AK20: 0.04530231067 | AL20: 0.04369351852 | AM20: 0.04259767343 | AN20: 0.04182523778 | AO20: 0.04128650843 | AP20: 0.04091279734 | AQ20: 0.04065573614
A21: R2 | B21: =1/B19/B9/B8 -> 3.743595183e-05 | C21: 25.49419552 | D21: -20.68716957 | E21: 0.07753508273 | F21: 0.0003961450663 | G21: -22.21003491 | H21: 0.004441294705 | I21: -0.002525707396 | J21: 0.5901397859 | K21: 0.02781169134 | L21: -0.09490616587 | M21: 0.008848185284 | N21: 0.0001527011592 | O21: 0.001637881789 | P21: 0.6850459518 | Q21: 0.01896350606 | R21: -0.1946184634 | S21: 0.01202562209 | T21: 5.292844303e-05 | U21: 0.0008565754166 | V21: 0.8796644151 | W21: 0.006937883968 | X21: -0.1203355849 | Y21: 0.006937883968 | Z21: 2.353199224e-05 | AA21: 0.0004081555792 | AB21: 25.49419552 | AC21: 0.09239352174 | AD21: 0.0002207732099
A22: C3 | B22: =B10 -> 11.56450435 | C22: 26.00407943 | D22: -19.76586727 | E22: 0.08546592227 | F22: 0.0004187999243 | G22: -21.36414033 | H22: 0.004331295303 | I22: -0.002291684856 | J22: 0.5751480391 | K22: 0.02810014571 | L22: -0.09775924681 | M22: 0.008832640774 | N22: 0.0001494440132 | O22: 0.00165403921 | P22: 0.672907286 | Q22: 0.01926750494 | R22: -0.2018955715 | S22: 0.01219086329 | T22: 5.260364718e-05 | U22: 0.000871180585 | V22: 0.8748028575 | W22: 0.007076641647 | X22: -0.1251971425 | Y22: 0.007076641647 | Z22: 2.353199224e-05 | AA22: 0.0004163186908 | AB22: 26.00407943 | AC22: 0.1027322113 | AD22: 0.000298124737
A23: L3 | B23: =1/B11/B11/B10 -> 1.600974539e-05 | C23: 26.52416102 | D23: -18.84496522 | E23: 0.09429124549 | F23: 0.0004426835956 | G23: -20.51057255 | H23: 0.004217765781 | I23: -0.002062062648 | J23: 0.559676327 | K23: 0.02837892742 | L23: -0.1006501533 | M23: 0.008805950826 | N23: 0.0001460710119 | O23: 0.001669560736 | P23: 0.6603264802 | Q23: 0.0195729766 | R23: -0.2094184127 | S23: 0.01235480211 | T23: 5.226572959e-05 | U23: 0.0008859232246 | V23: 0.8697448929 | W23: 0.00721817448 | X23: -0.1302551071 | Y23: 0.00721817448 | Z23: 2.353199224e-05 | AA23: 0.0004246450646 | AB23: 26.52416102 | AC23: 0.1142225204 | AD23: 0.0003972557203
A24: R3 | B24: =1/B22/B12/B11 -> 2.353199224e-05 | C24: 27.05464424 | D24: -17.92492842 | E24: 0.1041233937 | F24: 0.000467855467 | G24: -19.6490337 | H24: 0.004100635732 | I24: -0.001836938621 | J24: 0.5437151869 | K24: 0.02864699658 | L24: -0.1035744636 | M24: 0.008767328092 | N24: 0.0001425787718 | O24: 0.001684380881 | P24: 0.6472896505 | Q24: 0.01987966849 | R24: -0.2171929361 | S24: 0.01251713052 | T24: 5.191416012e-05 | U24: 0.00090079662 | V24: 0.8644825866 | W24: 0.00736253797 | X24: -0.1355174134 | Y24: 0.00736253797 | Z24: 2.353199224e-05 | AA24: 0.0004331379659 | AB24: 27.05464424 | AC24: 0.1269853379 | AD24: 0.0005226684896
A25: henka | B25: 0.01 | C25: 27.59573712 | D25: -17.00632593 | E25: 0.115089956 | F25: 0.000494376991 | G25: -18.77925152 | H25: 0.003979837465 | I25: -0.001616421213 | J25: 0.5272555379 | K25: 0.02890325096 | L25: -0.1065271419 | M25: 0.008715945201 | N25: 0.0001389638794 | O25: 0.00169843024 | P25: 0.6337826798 | Q25: 0.02018730576 | R25: -0.2252250033 | S25: 0.01267751703 | T25: 5.154838725e-05 | U25: 0.0009157933423 | V25: 0.8590076831 | W25: 0.007509788729 | X25: -0.1409923169 | Y25: 0.007509788729 | Z25: 2.353199224e-05 | AA25: 0.0004418007252 | AB25: 27.59573712 | AC25: 0.1411509168 | AD25: 0.0006791736805
A26: point | B26: =SUM(AD37:INDEX(AD37:AD177,B43)) -> 0.04063070044 | C26: 28.14765187 | D26: -16.08985239 | E26: 0.1273357124 | F26: 0.0005223116606 | G26: -17.90099556 | H26: 0.003855306518 | I26: -0.001400629766 | J26: 0.5102887516 | K26: 0.02914652329 | L26: -0.1095024839 | M26: 0.008650933547 | N26: 0.0001352228991 | O26: 0.00171163531 | P26: 0.6197912355 | Q26: 0.02049558974 | R26: -0.233520358 | S26: 0.01283560524 | T26: 5.116783716e-05 | U26: 0.0009309051993 | V26: 0.8533115935 | W26: 0.007659984504 | X26: -0.1466884065 | Y26: 0.007659984504 | Z26: 2.353199224e-05 | AA26: 0.0004506367397 | AB26: 28.14765187 | AC26: 0.1568582555 | AD26: 0.0008715805521
A27: Fmin | B27: 35 | C27: 28.7106049 | D27: -15.17635351 | E27: 0.1410246535 | F27: 0.0005517249674 | G27: -17.01409918 | H27: 0.003726982231 | I27: -0.001189694837 | J27: 0.4928067309 | K27: 0.02937557849 | L27: -0.1124940597 | M27: 0.00857138213 | N27: 0.0001313523818 | O27: 0.001723918319 | P27: 0.6053007905 | Q27: 0.02080419636 | R27: -0.2420845913 | S27: 0.01299101216 | T27: 5.077191284e-05 | U27: 0.0009461231823 | V27: 0.8473853819 | W27: 0.007813184194 | X27: -0.1526146181 | Y27: 0.007813184194 | Z27: 2.353199224e-05 | AA27: 0.0004596494745 | AB27: 28.7106049 | AC27: 0.1742538269 | AD27: 0.001104177969
A28: Fmax | B28: 200 | C28: 29.284817 | D28: -14.26685581 | E28: 0.1563419541 | F28: 0.0005826843433 | G28: -16.11848928 | H28: 0.003594808361 | I28: -0.0009837584977 | J28: 0.4748019945 | K28: 0.0295891109 | L28: -0.1154946522 | M28: 0.008476336483 | N28: 0.0001273488747 | O28: 0.001735197041 | P28: 0.5902966467 | Q28: 0.02111277442 | R28: -0.2509231046 | S28: 0.01314332654 | T28: 5.035999318e-05 | U28: 0.0009614374105 | V28: 0.8412197513 | W28: 0.007969447878 | X28: -0.1587802487 | Y28: 0.007969447878 | Z28: 2.353199224e-05 | AA28: 0.000468842464 | AB28: 29.284817 | AC28: 0.1934894141 | AD28: 0.001379933779
A29: 繰返し | B29: 10 | C29: 29.87051334 | D29: -13.36260069 | E29: 0.1734956914 | F29: 0.0006152590806 | G29: -15.21422612 | H29: 0.003458733755 | I29: -0.0007829746249 | J29: 0.4562677703 | K29: 0.02978574152 | L29: -0.1184961918 | M29: 0.008364797695 | N29: 0.0001232089321 | O29: 0.00174538462 | P29: 0.5747639621 | Q29: 0.02142094383 | R29: -0.2600410671 | S29: 0.01329210699 | T29: 4.993143196e-05 | U29: 0.0009768370703 | V29: 0.8348050293 | W29: 0.008128836835 | X29: -0.1651949707 | Y29: 0.008128836835 | Z29: 2.353199224e-05 | AA29: 0.0004782193133 | AB29: 29.87051334 | AC29: 0.2147187476 | AD29: 0.001699340362
A30: rms(dB) | B30: =LOG(1+SQRT(B26/106))*20 -> 0.1684113827 | C30: 30.46792361 | D30: -12.46508249 | E30: 0.1927179564 | F30: 0.0006495202299 | G30: -14.30155637 | H30: 0.003318713085 | I30: -0.0005875091781 | J30: 0.437198096 | K30: 0.0299640152 | L30: -0.1214896868 | M30: 0.008235721561 | N30: 0.0001189291281 | O30: 0.001754389389 | P30: 0.5586877828 | Q30: 0.02172829364 | R30: -0.2694433697 | S30: 0.01343688006 | T30: 4.948555687e-05 | U30: 0.0009923103525 | V30: 0.8281311524 | W30: 0.008291413572 | X30: -0.1718688476 | Y30: 0.008291413572 | Z30: 2.353199224e-05 | AA30: 0.0004877836995 | AB30: 30.46792361 | AC30: 0.2380925879 | AD30: 0.002058857184
A31: 中域補正 | C31: 31.07728208 | D31: -11.57608957 | E31: 0.2142648055 | F31: 0.0006855404719 | G31: -13.38098318 | H31: 0.003174707641 | I31: -0.0003975404526 | J31: 0.4175879284 | K31: 0.03012239793 | L31: -0.1244651494 | M31: 0.008088017877 | N31: 0.0001145060703 | O31: 0.001762114694 | P31: 0.5420530778 | Q31: 0.02203438005 | R31: -0.2791345732 | S31: 0.01357713821 | T31: 4.902166843e-05 | U31: 0.001007844384 | V31: 0.821187651 | W31: 0.008457241844 | X31: -0.178812349 | Y31: 0.008457241844 | Z31: 2.353199224e-05 | AA31: 0.0004975393735 | AB31: 31.07728208 | AC31: 0.2637518544 | AD31: 0.002448968003
A32: fp | B32: 135 | C32: 31.69882772 | D32: -10.69774644 | E32: 0.2384141944 | F32: 0.0007233939607 | G32: -12.45335784 | H32: 0.003026686196 | I32: -0.0002132593115 | J32: 0.3974332626 | K32: 0.03025927415 | L32: -0.1274115176 | M32: 0.007920549927 | N32: 0.0001099364153 | O32: 0.001768458712 | P32: 0.5248447803 | Q32: 0.02233872422 | R32: -0.2891188518 | S32: 0.01371233754 | T32: 4.853903889e-05 | U32: 0.001023425157 | V32: 0.8139636321 | W32: 0.00862638668 | X32: -0.1860363679 | Y32: 0.00862638668 | Z32: 2.353199224e-05 | AA32: 0.000507490161 | AB32: 31.69882772 | AC32: 0.291818404 | AD32: 0.002852009606
A33: Qp | B33: 5 | C33: 32.33280428 | D33: -9.832553576 | E33: 0.2654606239 | F33: 0.0007631561337 | G33: -11.51999779 | H33: 0.002874625939 | I33: -3.486938593e-05 | J33: 0.3767312602 | K33: 0.03037294414 | L33: -0.1303165721 | M33: 0.007732134171 | N33: 0.0001052168864 | O33: 0.001773314283 | P33: 0.5070478323 | Q33: 0.02264080996 | R33: -0.2993999305 | S33: 0.01384189555 | T33: 4.803691112e-05 | U33: 0.00103903745 | V33: 0.8064477628 | W33: 0.008798914414 | X33: -0.1935522372 | Y33: 0.008798914414 | Z33: 2.353199224e-05 | AA33: 0.0005176399642 | AB33: 32.33280428 | AC33: 0.3223831402 | AD33: 0.003240172862
A34: gain | B34: 0.85 | C34: 32.97946036 | D34: =LOG(AC34)*20 -> -8.983419544 | E34: =F34/SQRT(H34^2+I34^2) -> 0.2957046902 | F34: =SQRT((J34-1)^2+K34^2)*C34*B$14 -> 0.0008049034859 | G34: =LOG(E34)*20 -> -10.58283574 | H34: =N34+B$15*J34-(C34*B$14-1/C34/B$13)*K34 -> 0.002718513484 | I34: =O34+B$15*K34+(C34*B$14-1/C34/B$13)*J34 -> 0.0001374127594 | J34: =L34+P34 -> 0.3554803878 | K34: =M34+Q34 -> 0.03046162152 | L34: -0.1331668491 | M34: 0.007521540204 | N34: 0.0001003442922 | O34: 0.001776568741 | P34: 0.4886472369 | Q34: 0.02294008132 | R34: -0.3099810156 | S34: 0.01396518861 | T34: 4.751449739e-05 | U34: 0.00105466475 | V34: 0.7986282525 | W34: 0.008974892702 | X34: -0.2013717475 | Y34: 0.008974892702 | Z34: 2.353199224e-05 | AA34: 0.0005279927635 | AB34: 32.97946036 | AC34: =SQRT(((AB34/B$32-B$32/AB34)^2*B$33*B$33+(B$34)^2)/((AB34/B$32-B$32/AB34)^2*B$33*B$33+1)/((1-B$36*B$36/AB34/AB34)^2+(B$36/AB34/B$37)^2)*((B$40)^2+(AB34/B$39)^2)/(1+(AB34/B$39)^2))*SQRT(1/((1-B$36*B$36/AB34/AB34)^2+(B$36/AB34/B$37*2.41)^2)) -> 0.3554913378 | AD34: 0.003574443235
A35: 4次HPF | C35: 33.63904957 | D35: -8.153678307 | E35: 0.3294351019 | F35: 0.0008487133039 | G35: -9.644602557 | H35: 0.002558345959 | I35: 0.0003033575051 | J35: 0.3336805672 | K35: 0.03052343092 | L35: -0.1359475479 | M35: 0.007287490996 | N35: 9.531554863e-05 | O35: 0.001778103756 | P35: 0.4696281151 | Q35: 0.02323593992 | R35: -0.3208647188 | S35: 0.01408154936 | T35: 4.697097815e-05 | U35: 0.001070289164 | V35: 0.7904928339 | W35: 0.009154390556 | X35: -0.2095071661 | Y35: 0.009154390556 | Z35: 2.353199224e-05 | AA35: 0.0005385526188 | AB35: 33.63904957 | AC35: 0.3911254579 | AD35: 0.003805700027
A36: fc1 | B36: 40 | C36: 34.31183056 | D36: -7.347081973 | E36: 0.3669001618 | F36: 0.0008946633543 | G36: -8.709041934 | H36: 0.00239413218 | I36: 0.0004627221052 | J36: 0.3113333361 | K36: 0.03055640578 | L36: -0.1386424346 | M36: 0.007028663501 | N36: 9.012770261e-05 | O36: 0.001777795183 | P36: 0.4499757707 | Q36: 0.02352774228 | R36: -0.3320529736 | S36: 0.01419026391 | T36: 4.640550073e-05 | U36: 0.001085891327 | V36: 0.7820287443 | W36: 0.009337478368 | X36: -0.2179712557 | Y36: 0.009337478368 | Z36: 2.353199224e-05 | AA36: 0.0005493236712 | AB36: 34.31183056 | AC36: 0.4291863503 | AD36: 0.003879569275
A37: Qc1 | B37: 1.8 | C37: 34.99806717 | D37: -6.567757921 | E37: 0.408265536 | F37: 0.0009428315233 | G37: -7.781145595 | H37: 0.002225893912 | I37: 0.0006152506761 | J37: 0.2884420217 | K37: 0.03055848647 | L37: -0.1412337407 | M37: 0.006743689651 | N37: 8.477795822e-05 | O37: 0.00177551293 | P37: 0.4296757624 | Q37: 0.02381479682 | R37: -0.3435469432 | S37: 0.01429056888 | T37: 4.581717801e-05 | U37: 0.001101450305 | V37: 0.7732227056 | W37: 0.009524227935 | X37: -0.2267772944 | Y37: 0.009524227935 | Z37: 2.353199224e-05 | AA37: 0.0005603101446 | AB37: 34.99806717 | AC37: 0.4694746036 | AD37: 0.003746549952
A38: 低域レベル | C38: 35.69802852 | D38: -5.820119006 | E38: 0.4535560266 | F38: 0.0009932954005 | G38: -6.867381161 | H38: 0.002053667223 | I38: 0.0007606742531 | J38: 0.2650119262 | K38: 0.0305275186 | L38: -0.1437020572 | M38: 0.006431157839 | N38: 7.926370601e-05 | O38: 0.00177112083 | P38: 0.4087139834 | Q38: 0.02409636076 | R38: -0.3553469195 | S38: 0.01438164827 | T38: 4.520508707e-05 | U38: 0.001116943492 | V38: 0.7640609029 | W38: 0.009714712494 | X38: -0.2359390971 | Y38: 0.009714712494 | Z38: 2.353199224e-05 | AA38: 0.0005715163475 | AB38: 35.69802852 | AC38: 0.511674825 | AD38: 0.003377794729
A39: fc2 | B39: 58 | C39: 36.41198909 | D39: -5.108718133 | E39: 0.5025820545 | F39: 0.001046131803 | G39: -5.975860452 | H39: 0.001877503935 | I39: 0.000898710927 | J39: 0.2410505268 | K39: 0.03046125175 | L39: -0.1460262247 | M39: 0.006089614923 | N39: 7.358255515e-05 | O39: 0.00176447655 | P39: 0.3870767514 | Q39: 0.02437163683 | R39: -0.3674522119 | S39: 0.01446263008 | T39: 4.456826764e-05 | U39: 0.001132346498 | V39: 0.7545289634 | W39: 0.009909006743 | X39: -0.2454710366 | Y39: 0.009909006743 | Z39: 2.353199224e-05 | AA39: 0.0005829466744 | AB39: 36.41198909 | AC39: 0.5553465694 | AD39: 0.002784094023
A40: gain | B40: 0.01 | C40: 37.14022887 | D40: -4.438044807 | E40: 0.5548578673 | F40: 0.001101416231 | G40: -5.116365034 | H40: 0.001697473179 | I40: 0.001029066072 | J40: 0.2165676876 | K40: 0.03035733857 | L40: -0.1481832196 | M40: 0.005717568862 | N40: 6.773236904e-05 | O40: 0.001755431506 | P40: 0.3647509073 | Q40: 0.02463976971 | R40: -0.3798610262 | S40: 0.01453258283 | T40: 4.390572072e-05 | U40: 0.001147633034 | V40: 0.7446119335 | W40: 0.01010718688 | X40: -0.2553880665 | Y40: 0.01010718688 | Z40: 2.353199224e-05 | AA40: 0.0005946056079 | AB40: 37.14022887 | AC40: 0.5999261043 | AD40: 0.002031145987
C41: 37.88303344 | D41: -3.812271633 | E41: 0.6095285797 | F41: 0.001159222254 | G41: -4.300118525 | H41: 0.001513663053 | I41: 0.001151432675 | J41: 0.1915758881 | K41: 0.03021333441 | L41: -0.1501480367 | M41: 0.00531349206 | N41: 6.171130439e-05 | O41: 0.001743830816 | P41: 0.3417239248 | Q41: 0.02489984235 | R41: -0.3925703308 | S41: 0.01459051173 | T41: 4.321640689e-05 | U41: 0.001162774786 | V41: 0.7342942556 | W41: 0.01030933062 | X41: -0.2657057444 | Y41: 0.01030933062 | Z41: 2.353199224e-05 | AA41: 0.0006064977201 | AB41: 37.88303344 | AC41: 0.6447426774 | AD41: 0.001240032672
A42: 段数 | B42: 3 | C42: 38.64069411 | D42: -3.234971906 | E42: 0.665335009 | F42: 0.001219620812 | G42: -3.539192479 | H42: 0.001326182386 | I42: 0.001265491792 | J42: 0.1660904643 | K42: 0.03002669746 | L42: -0.1518935681 | M42: 0.004875825515 | N42: 5.551785447e-05 | O42: 0.001729513286 | P42: 0.3179840325 | Q42: 0.02515087194 | R42: -0.4055757111 | S42: 0.01463535471 | T42: 4.249924479e-05 | U42: 0.001177741282 | V42: 0.7235597436 | W42: 0.01051551723 | X42: -0.2764402564 | Y42: 0.01051551723 | Z42: 2.353199224e-05 | AA42: 0.0006186276745 | AB42: 38.64069411 | AC42: 0.6890510593 | AD42: 0.0005624510413
A43: 集計数 | B43: =INT(LOG(B28/B27)/LOG(1.02)) -> 88 | C43: 39.413508 | D43: -2.708842305 | E43: 0.720652259 | F43: 0.001282679433 | G43: -2.845484953 | H43: 0.001135162621 | I43: 0.001370913124 | J43: 0.1401298669 | K43: 0.02979478965 | L43: -0.153390481 | M43: 0.004402983897 | N43: 4.915089652e-05 | O43: 0.001712311431 | P43: 0.2935203479 | Q43: 0.02539180576 | R43: -0.4188712093 | S43: 0.01466597818 | T43: 4.175310934e-05 | U43: 0.001192499756 | V43: 0.7123915572 | W43: 0.01072582757 | X43: -0.2876084428 | Y43: 0.01072582757 | Z43: 2.353199224e-05 | AA43: 0.000631000228 | AB43: 39.413508 | AC43: 0.7320788915 | AD43: 0.0001305679302
C44: 40.20177816 | D44: -2.235472378 | E44: 0.773629543 | F44: 0.001348461356 | G44: -2.229339079 | H44: 0.0009407598052 | I44: 0.001467355759 | J44: 0.1137159334 | K44: 0.02951487831 | L44: -0.1546070926 | M44: 0.003893361678 | N44: 4.260974399e-05 | O44: 0.001692051543 | P44: 0.2683230261 | Q44: 0.02562151663 | R44: -0.43244915 | S44: 0.01468117251 | T44: 4.097683002e-05 | U44: 0.001207014992 | V44: 0.7007721761 | W44: 0.01094034412 | X44: -0.2992278239 | Y44: 0.01094034412 | Z44: 2.353199224e-05 | AA44: 0.0006436202325 | AB44: 40.20177816 | AC44: 0.7730834589 | AD44: 2.982078438e-07
A45: V2 | B45: 1e-09 | C45: 41.00581372 | D45: -1.815200811 | E45: 0.8224271463 | F45: 0.001417024548 | G45: -1.698051262 | H45: 0.0007431567015 | I45: 0.001554469075 | J45: 0.08687417752 | K45: 0.02918413868 | L45: -0.1555092457 | M45: 0.003345340443 | N45: 3.589420378e-05 | O45: 0.001668553814 | P45: 0.2423834232 | Q45: 0.02583879823 | R45: -0.4462999488 | S45: 0.01467964723 | T45: 4.016918901e-05 | U45: 0.00122124917 | V45: 0.688683372 | W45: 0.01115915101 | X45: -0.311316628 | Y45: 0.01115915101 | Z45: 2.353199224e-05 | AA45: 0.0006564926372 | AB45: 41.00581372 | AC45: 0.8114092596 | AD45: 0.0001213938286
A46: Fb2 | B46: 1000000000 | C46: 41.82592999 | D46: -1.447085567 | E46: 0.8654991667 | F46: 0.001488420611 | G46: -1.254666918 | H46: 0.0005425650146 | I46: 0.00163189384 | J46: 0.0596340929 | K46: 0.02879965757 | L46: -0.156060184 | M46: 0.00275729756 | N46: 2.900463923e-05 | O46: 0.001641632518 | P46: 0.2156942769 | Q46: 0.02604236001 | R46: -0.4604119033 | S46: 0.01466002598 | T46: 3.93289193e-05 | U46: 0.001235161699 | V46: 0.6761061803 | W46: 0.01138233403 | X46: -0.3238938197 | Y46: 0.01138233403 | Z46: 2.353199224e-05 | AA46: 0.0006696224899 | AB46: 41.82592999 | AC46: 0.846536565 | AD46: 0.0003595802632
A47: Qb2 | B47: 1000000000 | C47: 42.66244859 | D47: -1.128993723 | E47: 0.9018350545 | F47: 0.001562693569 | G47: -0.8974577517 | H47: 0.0003392277359 | I47: 0.001699263519 | J47: 0.03202947385 | K47: 0.02835843817 | L47: -0.1562204309 | M47: 0.002127616372 | N47: 2.194203902e-05 | O47: 0.001611096266 | P47: 0.1882499048 | Q47: 0.0262308218 | R47: -0.4747709652 | S47: 0.01462084109 | T47: 3.84547027e-05 | U47: 0.001248709031 | V47: 0.6630208699 | W47: 0.01160998071 | X47: -0.3369791301 | Y47: 0.01160998071 | Z47: 2.353199224e-05 | AA47: 0.0006830149397 | AB47: 42.66244859 | AC47: 0.8781128123 | AD47: 0.0005627447767
C48: 43.51569756 | D48: -0.8577936515 | E48: 0.931079075 | F48: 0.001639878528 | G48: -0.6202686708 | H48: 0.0001334216027 | I48: 0.001756205827 | J48: 0.004098750987 | K48: 0.0278574063 | L48: -0.1559476715 | M48: 0.001454698113 | N48: 1.470809287e-05 | O48: 0.00157674834 | P48: 0.1600464225 | Q48: 0.02640270818 | R48: -0.4893604906 | S48: 0.01456052786 | T48: 3.754516775e-05 | U48: 0.00126184448 | V48: 0.6494069131 | W48: 0.01184218032 | X48: -0.3505930869 | Y48: 0.01184218032 | Z48: 2.353199224e-05 | AA48: 0.0006966752385 | AB48: 43.51569756 | AC48: 0.9059627 | AD48: 0.0006308322927
C49: 44.38601152 | D49: -0.6296145978 | E49: 0.9534975487 | F49: 0.001720000193 | G49: -0.4136083828 | H49: -7.454032938e-05 | I49: 0.001802344541 | J49: -0.02411465801 | K49: 0.02729341816 | L49: -0.1551966419 | M49: 0.0007369757685 | N49: 7.305274254e-06 | O49: 0.001538387123 | P49: 0.1310819839 | Q49: 0.02655644239 | R49: -0.5041609685 | S49: 0.01447741847 | T49: 3.659888759e-05 | U49: 0.001274518013 | V49: 0.6352429524 | W49: 0.01207902393 | X49: -0.3647570476 | Y49: 0.01207902393 | Z49: 2.353199224e-05 | AA49: 0.0007106087433 | AB49: 44.38601152 | AC49: 0.9300777824 | AD49: 0.0005484854527
C50: 45.27373175 | D50: -0.4401313911 | E50: 0.9698267519 | F50: 0.001803071244 | G50: -0.2661168081 | H50: -0.0002843060073 | I50: 0.00183730161 | J50: -0.05256198327 | K50: 0.02666327003 | L50: -0.1539190271 | M50: -2.706987898e-05 | N50: -2.630688696e-07 | O50: 0.001495806631 | P50: 0.1013570439 | Q50: 0.02669033991 | R50: -0.5191497238 | S50: 0.01436973551 | T50: 3.561437771e-05 | U50: 0.001286676038 | V50: 0.6205067676 | W50: 0.01232060441 | X50: -0.3794932324 | Y50: 0.01232060441 | Z50: 2.353199224e-05 | AA50: 0.0007248209181 | AB50: 45.27373175 | AC50: 0.950590414 | AD50: 0.0003700366941
C51: 46.17920638 | D51: -0.284835578 | E51: 0.9810704406 | F51: 0.001889090549 | G51: -0.1659961856 | H51: -0.0004954816014 | I51: 0.001860699587 | J51: -0.08118872455 | K51: 0.02596370991 | L51: -0.1520633721 | M51: -0.0008388917383 | N51: -7.99261493e-06 | O51: 0.001448797172 | P51: 0.07087464753 | Q51: 0.02680260165 | R51: -0.5343005935 | S51: 0.01423558515 | T51: 3.459009363e-05 | U51: 0.001298261179 | V51: 0.6051752411 | W51: 0.01256701649 | X51: -0.3948247589 | Y51: 0.01256701649 | Z51: 2.353199224e-05 | AA51: 0.0007393173365 | AB51: 46.17920638 | AC51: 0.96773895 | AD51: 0.0001777286401
C52: 47.10279051 | D52: -0.1592651855 | E52: 0.9883120104 | F52: 0.001978041224 | G52: -0.1021185375 | H52: -0.0007076286375 | I52: 0.001872164422 | J52: -0.1099342613 | K52: 0.02519145155 | L52: -0.149575008 | M52: -0.001699855131 | N52: -1.587796029e-05 | O52: 0.001397146141 | P52: 0.03964074665 | Q52: 0.02689130668 | R52: -0.5495835741 | S52: 0.01407294986 | T52: 3.352442847e-05 | U52: 0.001309212028 | V52: 0.5892243208 | W52: 0.01281835682 | X52: -0.4107756792 | Y52: 0.01281835682 | Z52: 2.353199224e-05 | AA52: 0.0007541036832 | AB52: 47.10279051 | AC52: 0.9818310011 | AD52: 4.20034815e-05
C53: 48.04484632 | D53: -0.05917885883 | E53: 0.9925780498 | F53: 0.002069888507 | G53: -0.06470666302 | H53: -0.0009202610526 | I53: 0.001871328647 | J53: -0.1387314533 | K53: 0.0243431912 | L53: -0.1463959999 | M53: -0.002611213407 | N53: -2.391250072e-05 | O53: 0.00134063897 | P53: 0.007664546567 | Q53: 0.02695440461 | R53: -0.5649644368 | S53: 0.01387968065 | T53: 3.241571044e-05 | U53: 0.001319462894 | V53: 0.5726289834 | W53: 0.01307472396 | X53: -0.4273710166 | Y53: 0.01307472396 | Z53: 2.353199224e-05 | AA53: 0.0007691857569 | AB53: 48.04484632 | AC53: 0.9932099394 | AD53: 3.992844768e-07
C54: 49.00574325 | D54: 0.01932784923 | E54: 0.9947605129 | F54: 0.002164577466 | G54: -0.04562924817 | H54: -0.001132842194 | I54: 0.001857835003 | J54: -0.1675062337 | K54: 0.02341562725 | L54: -0.1424651197 | M54: -0.003574080072 | N54: -3.208830192e-05 | O54: 0.001279060257 | P54: -0.02504111394 | Q54: 0.02698970733 | R54: -0.5804043082 | S54: 0.01365348889 | T54: 3.12622002e-05 | U54: 0.001328943527 | V54: 0.5553631943 | W54: 0.01333621844 | X54: -0.4446368057 | Y54: 0.01333621844 | Z54: 2.353199224e-05 | AA54: 0.000784569472 | AB54: 49.00574325 | AC54: 1.002227678 | AD54: 5.575856148e-05
C55: 49.98585811 | D55: 0.07975791785 | E55: 0.9955867411 | F55: 0.002262030513 | G55: -0.03841791602 | H55: -0.00134478178 | I55: 0.001831340526 | J55: -0.1961771983 | K55: 0.02240548339 | L55: -0.1377178513 | M55: -0.004589397009 | N55: -4.039595817e-05 | O55: 0.001212195099 | P55: -0.05845934703 | Q55: 0.0269948804 | R55: -0.5958592144 | S55: 0.01339193759 | T55: 3.006208815e-05 | U55: 0.001337578831 | V55: 0.5373998673 | W55: 0.01360294281 | X55: -0.4626001327 | Y55: 0.01360294281 | Z55: 2.353199224e-05 | AA55: 0.0008002608615 | AB55: 49.98585811 | AC55: 1.009224758 | AD55: 0.0001859954997
C56: 50.98557527 | D56: 0.1251896047 | E56: 0.9956208611 | F56: 0.002362144739 | G56: -0.03812024548 | H56: -0.001555432858 | I56: 0.001791521165 | J56: -0.2246551952 | K56: 0.02130953553 | L56: -0.132086434 | M56: -0.005657898326 | N56: -4.882443796e-05 | O56: 0.001139830646 | P56: -0.09256876121 | Q56: 0.02696743386 | R56: -0.6112795832 | S56: 0.01309243219 | T56: 2.881349157e-05 | U56: 0.00134528855 | V56: 0.518710822 | W56: 0.01387500167 | X56: -0.481289178 | Y56: 0.01387500167 | Z56: 2.353199224e-05 | AA56: 0.0008162660787 | AB56: 50.98557527 | AC56: 1.014517354 | AD56: 0.0003570774368
C57: 52.00528678 | D57: 0.1582830266 | E57: 0.9952818385 | F57: 0.002464789049 | G57: -0.04107841366 | H57: -0.001764088781 | I57: 0.001738076962 | J57: -0.2528429184 | K57: 0.02012464307 | L57: -0.125499954 | M57: -0.006780069308 | N57: -5.736091566e-05 | O57: 0.001061757919 | P57: -0.1273429644 | Q57: 0.02690471238 | R57: -0.6266097035 | S57: 0.01275221068 | T57: 2.751445169e-05 | U57: 0.00135198695 | V57: 0.4992667392 | W57: 0.0141525017 | X57: -0.5007332608 | Y57: 0.0141525017 | Z57: 2.353199224e-05 | AA57: 0.0008325914003 | AB57: 52.00528678 | AC57: 1.018390059 | AD57: 0.0005339898564
C58: 53.04539251 | D58: 0.1813061117 | E58: 0.9948678719 | F58: 0.002569801123 | G58: -0.04469187885 | H58: -0.001969980258 | I58: 0.00167073783 | J58: -0.2806345123 | K58: 0.01884778507 | L58: -0.1178844916 | M58: -0.007956099887 | N58: -6.599058787e-05 | O58: 0.0009777739105 | P58: -0.1627500208 | Q58: 0.02680388496 | R58: -0.6417871362 | S58: 0.01236833322 | T58: 2.61629306e-05 | U58: 0.001357582465 | V58: 0.4790371154 | W58: 0.01443555173 | X58: -0.5209628846 | Y58: 0.01443555173 | Z58: 2.353199224e-05 | AA58: 0.0008492432283 | AB58: 53.04539251 | AC58: 1.021093016 | AD58: 0.0006877581633
C59: 54.10630036 | D59: 0.1961714595 | E59: 0.9945810633 | F59: 0.002676984182 | G59: -0.04719627907 | H59: -0.002172272515 | I59: 0.001589270014 | J59: -0.3079151942 | K59: 0.01747610187 | L59: -0.1091633362 | M59: -0.009185832002 | N59: -7.469647318e-05 | O59: 0.000887684013 | P59: -0.198751858 | Q59: 0.02666193387 | R59: -0.6567420729 | S59: 0.0119376711 | T59: 2.475680805e-05 | U59: 0.001361977332 | V59: 0.4579902149 | W59: 0.01472426277 | X59: -0.5420097851 | Y59: 0.01472426277 | Z59: 2.353199224e-05 | AA59: 0.0008662280929 | AB59: 54.10630036 | AC59: 1.022842048 | AD59: 0.0007986832377
C60: 55.18842637 | D60: 0.204477859 | E60: 0.9945494104 | F60: 0.002786103592 | G60: -0.04747271488 | H60: -0.002370062642 | I60: 0.001493483249 | J60: -0.3345609021 | K60: 0.01600694286 | L60: -0.09925728243 | M60: -0.01046870012 | N60: -8.345919396e-05 | O60: 0.0007913048129 | P60: -0.2353036197 | Q60: 0.02647564298 | R60: -0.6713966393 | S60: 0.01145689496 | T60: 2.329387816e-05 | U60: 0.001365067199 | V60: 0.4360930196 | W60: 0.01501874802 | X60: -0.5639069804 | Y60: 0.01501874802 | Z60: 2.353199224e-05 | AA60: 0.0008835526547 | AB60: 55.18842637 | AC60: 1.023820669 | AD60: 0.0008568065902
C61: 56.2921949 | D61: 0.2075522292 | E61: 0.9948450773 | F61: 0.002896883307 | G61: -0.0448908939 | H61: -0.002562377175 | I61: 0.001383238689 | J61: -0.360437979 | K61: 0.01443792119 | L61: -0.08808502031 | M61: -0.01180366411 | N61: -9.22567386e-05 | O61: 0.0006884672941 | P61: -0.2723529587 | Q61: 0.0262415853 | R61: -0.6856641363 | S61: 0.01092246232 | T61: 2.177184589e-05 | U61: 0.001366740711 | V61: 0.4133111776 | W61: 0.01531912298 | X61: -0.5866888224 | Y61: 0.01531912298 | Z61: 2.353199224e-05 | AA61: 0.0009012237078 | AB61: 56.2921949 | AC61: 1.024183115 | AD61: 0.0008607204309
C62: 57.4180388 | D62: 0.206489353 | E62: 0.9954989234 | F62: 0.003009002188 | G62: -0.03918410584 | H62: -0.002748170017 | I62: 0.001258457661 | J62: -0.3854029048 | K62: 0.01276697618 | L62: -0.07556363806 | M62: -0.01318913367 | N62: -0.0001010642024 | O62: 0.0005790205031 | P62: -0.3098392668 | Q62: 0.02595610985 | R62: -0.6994482159 | S62: 0.0103306044 | T62: 2.018832353e-05 | U62: 0.001366879064 | V62: 0.3896089492 | W62: 0.01562550544 | X62: -0.6103910508 | Y62: 0.01562550544 | Z62: 2.353199224e-05 | AA62: 0.000919248182 | AB62: 57.4180388 | AC62: 1.024057795 | AD62: 0.0008156091355
C63: 58.56639957 | D63: 0.2021879727 | E63: 0.9965117311 | F63: 0.003122090214 | G63: -0.03035168689 | H63: -0.002926320795 | I63: 0.001119131282 | J63: -0.4093020901 | K63: 0.01099244445 | L63: -0.06160925627 | M63: -0.01462288315 | N63: -0.0001098535058 | O63: 0.0004628357293 | P63: -0.3476928338 | Q63: 0.0256153276 | R63: -0.7126419845 | S63: 0.009677312051 | T63: 1.854082686e-05 | U63: 0.001365355543 | V63: 0.3649491507 | W63: 0.01593801555 | X63: -0.6350508493 | Y63: 0.01593801555 | Z63: 2.353199224e-05 | AA63: 0.0009376331456 | AB63: 58.56639957 | AC63: 1.023550792 | AD63: 0.0007311108093
C64: 59.73772756 | D64: 0.1953826312 | E64: 0.9978627151 | F64: 0.003235724649 | G64: -0.01858408745 | H64: -0.003095633751 | I64: 0.0009653310083 | J64: -0.4319717477 | K64: 0.009113140761 | L64: -0.04613781588 | M64: -0.01610195592 | N64: -0.0001185930868 | O64: 0.0003398112644 | P64: -0.3858339318 | Q64: 0.02521509668 | R64: -0.7251270282 | S64: 0.008958320819 | T64: 1.682677132e-05 | U64: 0.001362035021 | V64: 0.3392930964 | W64: 0.01625677586 | X64: -0.6607069036 | Y64: 0.01625677586 | Z64: 2.353199224e-05 | AA64: 0.0009563858085 | AB64: 59.73772756 | AC64: 1.02274916 | AD64: 0.0006193351486
C65: 60.93248212 | D65: 0.1866711682 | E65: 0.9995158868 | F65: 0.003349426208 | G65: -0.004205972416 | H65: -0.003254837329 | I65: 0.0007972201556 | J65: -0.4532378627 | K65: 0.0071284497 | L65: -0.02906604586 | M65: -0.01762255685 | N65: -0.0001272475673 | O65: 0.0002098778093 | P65: -0.4241718168 | Q65: 0.02475100655 | R65: -0.7367723543 | S65: 0.008169095168 | T65: 1.504346794e-05 | U65: 0.001356773433 | V65: 0.3126005375 | W65: 0.01658191138 | X65: -0.6873994625 | Y65: 0.01658191138 | Z65: 2.353199224e-05 | AA65: 0.0009755135247 | AB65: 60.93248212 | AC65: 1.021723914 | AD65: 0.0004931964755
C66: 62.15113176 | D66: 0.1765380927 | E66: 1.001424767 | F66: 0.003462655297 | G66: 0.01236655979 | H66: -0.003402584606 | I66: 0.0006150664403 | J66: -0.4729162806 | K66: 0.005038429535 | L66: -0.01031263993 | M66: -0.01917993174 | N66: -0.0001357773891 | O66: 7.300460415e-05 | P66: -0.4626036407 | Q66: 0.02421836127 | R66: -0.7474332399 | S66: 0.007304811663 | T66: 1.318811911e-05 | U66: 0.001349417213 | V66: 0.2848295992 | W66: 0.01691354961 | X66: -0.7151704008 | Y66: 0.01691354961 | Z66: 2.353199224e-05 | AA66: 0.0009950237952 | AB66: 62.15113176 | AC66: =SQRT(((AB66/B$32-B$32/AB66)^2*B$33*B$33+(B$34)^2)/((AB66/B$32-B$32/AB66)^2*B$33*B$33+1)/((1-B$36*B$36/AB66/AB66)^2+(B$36/AB66/B$37)^2)*((B$40)^2+(AB66/B$39)^2)/(1+(AB66/B$39)^2))*SQRT(1/((1-B$36*B$36/AB66/AB66)^2+(B$36/AB66/B$37*2.41)^2)) -> 1.020532652 | AD66: 0.0003651112834
C67: 63.39415439 | D67: =LOG(AC67)*20 -> 0.1653742139 | E67: 1.003535849 | F67: 0.00357480843 | G67: 0.03065782399 | H67: -0.003537454748 | I67: 0.0004192555787 | J67: -0.4908129433 | K67: 0.002843929658 | L67: 0.01020032391 | M67: -0.02076823209 | N67: -0.0001441384186 | O67: -7.079363094e-05 | P67: -0.5010132672 | Q67: 0.02361216174 | R67: -0.7569499822 | S67: 0.006360341144 | T67: 1.125781418e-05 | U67: 0.001339802701 | V67: 0.255936715 | W67: 0.0172518206 | X67: -0.744063285 | Y67: 0.0172518206 | Z67: =$B$24 -> 2.353199224e-05 | AA67: 0.001014924271 | AB67: =C67 -> 63.39415439 | AC67: 1.019221815 | AD67: =(AC67-E67)^2 -> 0.0002460495451
C68: =C67*1.02 -> 64.66203748 | D68: 0.1534929772 | E68: =F68/SQRT(H68^2+I68^2) -> 1.005791124 | F68: =SQRT((J68-1)^2+K68^2)*C68*B$14 -> 0.003685214923 | G68: =LOG(E68)*20 -> 0.05015597017 | H68: =N68+B$15*J68-(C68*B$14-1/C68/B$13)*K68 -> -0.00365795572 | I68: =O68+B$15*K68+(C68*B$14-1/C68/B$13)*J68 -> 0.0002103059775 | J68: =L68+P68 -> -0.5067242994 | K68: =M68+Q68 -> 0.0005467231671 | L68: =-C68*B$16*O68 -> 0.0325456823 | M68: =C68*B$16*N68 -> -0.02238036365 | N68: =T68+$B$18*P68-C68*$B$17*Q68 -> -0.000152281516 | O68: =U68+$B$18*Q68+C68*$B$17*P68 -> -0.0002214488521 | P68: =R68+V68 -> -0.5392699817 | Q68: =S68+W68 -> 0.02292708682 | R68: =-C68*$B$19*U68 -> -0.76514654 | S68: =C68*$B$19*T68 -> 0.005330229804 | T68: =Z68+V68*$B$21-C68*$B$20*W68 -> 9.249524934e-06 | U68: =AA68+$B$21*W68+C68*$B$20*V68 -> 0.001327755511 | V68: =1+X68 -> 0.2258765583 | W68: =Y68 -> 0.01759685701 | X68: =-C68*$B$22*AA68 -> -0.7741234417 | Y68: =C68*$B$22*Z68 -> 0.01759685701 | Z68: 2.353199224e-05 | AA68: =C68*$B$23 -> 0.001035222757 | AB68: 64.66203748 | AC68: 1.017828597 | AD68: 0.0001449007767
C69: 65.95527823 | D69: 0.1411439604 | E69: 1.0081299 | F69: 0.003793134027 | G69: 0.07032991546 | H69: -0.003762528492 | I69: -1.111546465e-05 | J69: -0.5204379279 | K69: -0.00185034361 | L69: 0.05678915983 | M69: -0.02400781687 | N69: -0.0001601520678 | O69: -0.0003788308378 | P69: -0.5772270877 | Q69: 0.02215747326 | R69: -0.771829059 | S69: 0.004208679107 | T69: 7.160100801e-06 | U69: 0.001313089861 | V69: 0.1946019712 | W69: 0.01794879415 | X69: -0.8053980288 | Y69: 0.01794879415 | Z69: 2.353199224e-05 | AA69: 0.001055927212 | AB69: 65.95527823 | AC69: 1.016382545 | AD69: 6.810614367e-05
C70: 67.27438379 | D70: 0.1285239564 | E70: 1.0104901 | F70: 0.003897752652 | G70: 0.09064125717 | H70: -0.003849553043 | I70: -0.0002441764393 | J70: -0.5317334129 | K70: -0.004343182734 | L70: 0.08298696613 | M70: -0.02564047724 | N70: -0.0001676894782 | O70: -0.0005427372089 | P70: -0.614720379 | Q70: 0.0212972945 | R70: -0.7767842699 | S70: 0.002989524468 | T70: 4.986263933e-06 | U70: 0.001295607857 | V70: 0.1620638909 | W70: 0.01830777003 | X70: -0.8379361091 | Y70: 0.01830777003 | Z70: 2.353199224e-05 | AA70: 0.001077045756 | AB70: 67.27438379 | AC70: 1.014906883 | AD70: 1.950797395e-05
C71: 68.61987147 | D71: 0.1157860234 | E71: 1.012809144 | F71: 0.003998183926 | G71: 0.1105522742 | H71: -0.003917356481 | I71: -0.0004878612068 | J71: -0.5403835179 | K71: -0.006926275224 | L71: 0.1111829592 | M71: -0.02726641328 | N71: -0.0001748266157 | O71: -0.0007128821923 | P71: -0.6515664771 | Q71: 0.02034013806 | R71: -0.7797777492 | S71: 0.001666212621 | T71: 2.724604056e-06 | U71: 0.001275098742 | V71: 0.1282112721 | W71: 0.01867392544 | X71: -0.8717887279 | Y71: 0.01867392544 | Z71: 2.353199224e-05 | AA71: 0.001098586671 | AB71: 68.61987147 | AC71: 1.013419604 | AD71: 3.726611677e-07
C72: 69.9922689 | D72: 0.1030468358 | E72: 1.01502454 | F72: 0.004093466825 | G72: 0.1295308479 | H72: -0.003964223694 | I72: -0.0007409515082 | J72: -0.5461557143 | K72: -0.009592458179 | L72: 0.1414053092 | M72: -0.02887163973 | N72: -0.0001814892122 | O72: -0.0008888839844 | P72: -0.6875610235 | Q72: 0.01927918155 | R72: -0.780552031 | S72: 0.0002317776105 | T72: 3.715731193e-07 | U72: 0.001251338092 | V72: 0.09299100746 | W72: 0.01904740394 | X72: -0.9070089925 | Y72: 0.01904740394 | Z72: 2.353199224e-05 | AA72: 0.001120558404 | AB72: 69.9922689 | AC72: 1.011934358 | AD72: 9.549225795e-06
C73: 71.39211428 | D73: 0.09039261304 | E73: 1.01707422 | F73: 0.004182567202 | G73: 0.1470529301 | H73: -0.003988410958 | I73: -0.001002006476 | J73: -0.5488141257 | K73: -0.01233268579 | L73: 0.1736625875 | M73: -0.0304398531 | N73: -0.0001875952105 | O73: -0.001070250554 | P73: -0.7224767132 | Q73: 0.01810716731 | R73: -0.7788245574 | S73: -0.00132118471 | T73: -2.076520267e-06 | U73: 0.001224086962 | V73: 0.05634784417 | W73: 0.01942835202 | X73: -0.9436521558 | Y73: 0.01942835202 | Z73: 2.353199224e-05 | AA73: 0.001142969572 | AB73: 71.39211428 | AC73: 1.010461174 | AD73: 4.373238909e-05
C74: 72.81995656 | D74: 0.0778838606 | E74: 1.018896692 | F74: 0.004264380586 | G74: 0.1626030423 | H74: -0.003988163023 | I74: -0.00126934165 | J74: -0.5481219606 | K74: -0.01513576125 | L74: 0.2079391962 | M74: -0.03195213659 | N74: -0.0001930540541 | O74: -0.001256363709 | P74: -0.7560611568 | Q74: 0.01681637534 | R74: -0.7742854539 | S74: -0.003000543727 | T74: -4.623516626e-06 | U74: 0.001193090985 | V74: 0.01822429707 | W74: 0.01981691906 | X74: -0.9817757029 | Y74: 0.01981691906 | Z74: 2.353199224e-05 | AA74: 0.001165828964 | AB74: 72.81995656 | AC74: 1.009007032 | AD74: 9.780536511e-05
C75: 74.27635569 | D75: 0.06555910615 | E75: 1.020431039 | F75: 0.004337737223 | G75: 0.175673202 | H75: -0.003961734284 | I75: -0.00154100724 | J75: -0.5438445164 | K75: -0.01798803635 | L75: 0.2441900397 | M75: -0.03338663101 | N75: -0.0001977659171 | O75: -0.001446461224 | P75: -0.7880345561 | Q75: 0.01539859466 | R75: -0.7665951148 | S75: -0.00481466279 | T75: -7.273411638e-06 | U75: 0.001158079407 | V75: -0.02143944133 | W75: 0.02021325744 | X75: -1.021439441 | Y75: 0.02021325744 | Z75: 2.353199224e-05 | AA75: 0.001189145543 | AB75: 74.27635569 | AC75: 1.007576327 | AD75: 0.0001652436016
C76: 75.76188281 | D76: 0.05343777954 | E76: 1.021616813 | F76: 0.004401409873 | G76: 0.1857606332 | H76: -0.003907414691 | I76: -0.001814765851 | J76: -0.5357528492 | K76: -0.02087307501 | L76: 0.282334329 | M76: -0.03471816792 | N76: -0.000201620867 | O76: -0.001639616823 | P76: -0.8180871782 | Q76: 0.01384509291 | R76: -0.7553815834 | S76: -0.006772429687 | T76: -1.003036241e-05 | U76: 0.001118764076 | V76: -0.06270559476 | W76: 0.02061752259 | X76: -1.062705595 | Y76: 0.02061752259 | Z76: 2.353199224e-05 | AA76: 0.001212928454 | AB76: 75.76188281 | AC76: 1.006171216 | AD76: 0.0002385664798
C77: 77.27712046 | D77: 0.0415223446 | E77: 1.022393858 | F77: 0.004454125033 | G77: 0.1923646377 | H77: -0.003823561207 | I77: -0.00208806993 | J77: -0.5236282188 | K77: -0.02377127679 | L77: 0.3222483913 | M77: -0.03591786084 | N77: -0.0002044979554 | O77: -0.001834717759 | P77: -0.8458766101 | Q77: 0.01214658404 | R77: -0.7402377093 | S77: -0.008883289002 | T77: -1.289869399e-05 | U77: 0.00107483835 | V77: -0.1056389008 | W77: 0.02102987305 | X77: -1.105638901 | Y77: 0.02102987305 | Z77: 2.353199224e-05 | AA77: 0.001237187023 | AB77: 77.27712046 | AC77: 1.004791881 | AD77: 0.0003098295969
C78: 78.82266287 | D78: 0.02979975854 | E78: 1.022702116 | F78: 0.004494578348 | G78: 0.1949830899 | H78: -0.003708635685 | I78: -0.002358039295 | J78: -0.5072674334 | K78: -0.02665945591 | L78: 0.3637573428 | M78: -0.03695264997 | N78: -0.0002062642316 | O78: -0.002030439735 | P78: -0.8710247762 | Q78: 0.01029319406 | R78: -0.7207180639 | S78: -0.01115727644 | T78: -1.588290617e-05 | U78: 0.001025975958 | V78: -0.1503067124 | W78: 0.02145047051 | X78: -1.150306712 | Y78: 0.02145047051 | Z78: 2.353199224e-05 | AA78: 0.001261930764 | AB78: 78.82266287 | AC78: 1.003436716 | AD78: 0.000371155635
C79: 80.39911613 | D79: 0.01824230182 | E79: 1.022481502 | F79: 0.004521455108 | G79: 0.193109199 | H79: -0.003561250203 | I79: -0.002621439195 | J79: -0.4864892366 | K79: -0.02951037071 | L79: 0.4066254617 | M79: -0.03778479534 | N79: -0.0002067736707 | O79: -0.002225218863 | P79: -0.8931146983 | Q79: 0.008274424629 | R79: -0.6963355948 | S79: -0.01360505529 | T79: -1.898768052e-05 | U79: 0.000971829774 | V79: -0.1967791036 | W79: 0.02187947992 | X79: -1.196779104 | Y79: 0.02187947992 | Z79: 2.353199224e-05 | AA79: 0.001287169379 | AB79: 80.39911613 | AC79: 1.00210243 | AD79: 0.0004153066045
C80: 82.00709845 | D80: 0.006807788163 | E80: 1.021671962 | F80: 0.004533456925 | G80: 0.1862295011 | H80: -0.003380221015 | I80: -0.002874659469 | J80: -0.4611419001 | K80: -0.03229219824 | L80: 0.4505450755 | M80: -0.03837131269 | N80: -0.0002058660104 | O80: -0.002417220333 | P80: -0.9116869756 | Q80: 0.006079114449 | R80: -0.6665579963 | S80: -0.01623795507 | T80: -2.221788775e-05 | U80: 0.0009120305285 | V80: -0.2451289793 | W80: 0.02231706951 | X80: -1.245128979 | Y80: 0.02231706951 | Z80: 2.353199224e-05 | AA80: 0.001312912766 | AB80: 82.00709845 | AC80: 1.000784083 | AD80: 0.0004363034934
C81: 83.64724042 | D81: -0.0045608712 | E81: 1.020213881 | F81: 0.004529335839 | G81: 0.1738245646 | H81: -0.003164632472 | I81: -0.003113695522 | J81: -0.4311122092 | K81: -0.03496794765 | L81: 0.495123754 | M81: -0.03866334595 | N81: -0.0002033654889 | O81: -0.002604303426 | P81: -0.9262359631 | Q81: 0.0036953983 | R81: -0.630803773 | S81: -0.0190680126 | T81: -2.557859536e-05 | U81: 0.0008461854307 | V81: -0.2954321901 | W81: 0.02276341091 | X81: -1.29543219 | Y81: 0.02276341091 | Z81: 2.353199224e-05 | AA81: 0.001339171022 | AB81: 83.64724042 | AC81: 0.9994750481 | AD81: 0.0004300991881
C82: 85.32018523 | D82: -0.01593681645 | E82: 1.018049128 | F82: 0.004507937361 | G82: 0.155374724 | H82: -0.002913912418 | I82: -0.00333413198 | J82: -0.3963360526 | K82: -0.03749480587 | L82: 0.5398695684 | M82: -0.0386054694 | N82: -0.0001990794743 | O82: -0.002783982466 | P82: -0.9362056209 | Q82: 0.001110663522 | R82: -0.5884379703 | S82: -0.0221080156 | T82: -2.907507555e-05 | U82: 0.0007738767129 | V82: -0.3477676506 | W82: 0.02321867912 | X82: -1.347767651 | Y82: 0.02321867912 | Z82: 2.353199224e-05 | AA82: 0.001365954442 | AB82: 85.32018523 | AC82: 0.9981668884 | AD82: 0.000395303446
C83: 87.02658894 | D83: -0.02741121935 | E83: 1.015123128 | F83: 0.004468254202 | G83: 0.1303744547 | H83: -0.002627920825 | I83: -0.003531130121 | J83: -0.3568108608 | K83: -0.03982340794 | L83: 0.5841741473 | M83: -0.03813491179 | N83: -0.000192796978 | O83: -0.002953383264 | P83: -0.9409850082 | Q83: -0.001688496157 | R83: -0.5387675445 | S83: -0.02537154886 | T83: -3.271281354e-05 | U83: 0.0006946600824 | V83: -0.4022174637 | W83: 0.02368305271 | X83: -1.402217464 | Y83: 0.02368305271 | Z83: 2.353199224e-05 | AA83: 0.001393273531 | AB83: 87.02658894 | AC83: 0.9968491412 | AD83: 0.0003339386057
C84: 88.76712072 | D84: -0.03909627869 | E84: 1.011388588 | F84: 0.004409492753 | G84: 0.0983609823 | H84: -0.002307053642 | I84: -0.003699420382 | J84: -0.3126101698 | K84: -0.04189702376 | L84: 0.6272932214 | M84: -0.03718069413 | N84: -0.0001842870414 | O84: -0.003109194559 | P84: -0.9399033911 | Q84: -0.004716329625 | R84: -0.4810363419 | S84: -0.02887304339 | T84: -3.649751615e-05 | U84: 0.0006080630789 | V84: -0.4588670492 | W84: 0.02415671376 | X84: -1.458867049 | Y84: 0.02415671376 | Z84: 2.353199224e-05 | AA84: 0.001421139002 | AB84: 88.76712072 | AC84: 0.9955089895 | AD84: 0.0002521616611
C85: 90.54246313 | D85: -0.05112950366 | E85: 1.00681177 | F85: 0.004331154741 | G85: 0.05896568341 | H85: -0.001952364124 | I85: -0.003833301553 | J85: -0.2639006241 | K85: -0.04365065211 | L85: 0.6683243093 | M85: -0.03566267171 | N85: -0.0001732969856 | O85: -0.003247613896 | P85: -0.9322249335 | Q85: -0.007987980404 | R85: -0.4144196555 | S85: -0.03262782844 | T85: -4.043512074e-05 | U85: 0.0005135833308 | V85: -0.517805278 | W85: 0.02463984804 | X85: -1.517805278 | Y85: 0.02463984804 | Z85: 2.353199224e-05 | AA85: 0.001449561782 | AB85: 90.54246313 | AC85: 0.9941307899 | AD85: 0.0001608072692
C86: 92.35331239 | D86: -0.06367967981 | E86: 1.001382631 | F86: 0.004233136914 | G86: 0.01200108883 | H86: -0.001565704228 | I86: -0.003926648571 | J86: -0.2109617817 | K86: -0.04501001183 | L86: 0.7061811514 | M86: -0.03349046998 | N86: -0.0001595505123 | O86: -0.00336428735 | P86: -0.917142933 | Q86: -0.01151954186 | R86: -0.3380183218 | S86: -0.03665218685 | T86: -4.453180456e-05 | U86: 0.0004106867048 | V86: -0.5791246112 | W86: 0.025132645 | X86: -1.579124611 | Y86: 0.025132645 | Z86: 2.353199224e-05 | AA86: 0.001478553017 | AB86: 92.35331239 | AC86: 0.992695415 | AD86: 7.546772749e-05
C87: 94.20037864 | D87: -0.07695508531 | E87: 0.9951306472 | F87: 0.004115852109 | G87: -0.04239797048 | H87: -0.001149888999 | I87: -0.003972931252 | J87: -0.1542091258 | K87: -0.0458904188 | L87: 0.739564442 | M87: -0.03056230301 | N87: -0.0001427456447 | O87: -0.003454242406 | P87: -0.8937735679 | Q87: -0.01532811579 | R87: -0.2508523224 | S87: -0.04096341368 | T87: -4.87939944e-05 | U87: 0.0002988053415 | V87: -0.6429212455 | W87: 0.0256352979 | X87: -1.642921246 | Y87: 0.0256352979 | Z87: 2.353199224e-05 | AA87: 0.001508124078 | AB87: 94.20037864 | AC87: 0.9911793506 | AD87: 1.561274471e-05
C88: 96.08438621 | D88: -0.09121477127 | E88: 0.9881487128 | F88: 0.003980375718 | G88: -0.1035538151 | H88: -0.0007088872949 | I88: -0.003965246731 | J88: -0.09422075302 | K88: -0.04619553638 | L88: 0.7669283571 | M88: -0.02676366175 | N88: -0.0001225524929 | O88: -0.003511813253 | P88: -0.8611491102 | Q88: -0.01943187463 | R88: -0.1518538463 | S88: -0.04557987848 | T88: -5.322837672e-05 | U88: 0.0001773355702 | V88: -0.7092952638 | W88: 0.02614800385 | X88: -1.709295264 | Y88: 0.02614800385 | Z88: 2.353199224e-05 | AA88: 0.001538286559 | AB88: 96.08438621 | AC88: 0.9895534595 | AD88: 1.973313301e-06
C89: 98.00607394 | D89: -0.106784075 | E89: 0.9806278561 | F89: 0.003828622332 | G89: -0.1699154832 | H89: -0.0002480426541 | I89: -0.003896368935 | J89: -0.03176826286 | K89: -0.04581598555 | L89: 0.7864423 | M89: -0.0219658581 | N89: -9.861083117e-05 | O89: -0.003530557673 | P89: -0.8182105628 | Q89: -0.02385012745 | R89: -0.03985977034 | S89: -0.05052109138 | T89: -5.784190808e-05 | U89: 4.563569608e-05 | V89: -0.7783507925 | W89: 0.02667096393 | X89: -1.778350792 | Y89: 0.02667096393 | Z89: 2.353199224e-05 | AA89: 0.00156905229 | AB89: 98.00607394 | AC89: 0.9877812912 | AD89: 5.117163265e-05
C90: 99.96619542 | D90: -0.1240760475 | E90: 0.972904922 | F90: 0.003663558497 | G90: -0.2385919897 | H90: 0.0002256713942 | I90: -0.003758819063 | J90: 0.0321475466 | K90: -0.04462779947 | L90: 0.7959472185 | M90: -0.01602440945 | N90: -7.05274704e-05 | O90: -0.003503164598 | P90: -0.7637996719 | Q90: -0.02860339002 | R90: 0.08639649258 | S90: -0.05580777323 | T90: -6.26418261e-05 | U90: -9.697634848e-05 | V90: -0.8501961645 | W90: 0.02720438321 | X90: -1.850196165 | Y90: 0.02720438321 | Z90: 2.353199224e-05 | AA90: 0.001600433336 | AB90: 99.96619542 | AC90: 0.9858167606 | AD90: 0.0001667155756
C91: 101.9655193 | D91: -0.1436212128 | E91: 0.9655219757 | F91: 0.003489459007 | G91: -0.3047567409 | H91: 0.0007033566536 | I91: -0.00354496177 | J91: 0.09625549631 | K91: -0.0424907056 | L91: 0.7929057575 | M91: -0.008777246435 | N91: -3.787340867e-05 | O91: -0.003421351333 | P91: -0.6966502612 | Q91: -0.03371345917 | R91: 0.2282938284 | S91: -0.06146193004 | T91: -6.763566082e-05 | U91: -0.0002512254973 | V91: -0.9249440896 | W91: 0.02774847087 | X91: -1.92494409 | Y91: 0.02774847087 | Z91: 2.353199224e-05 | AA91: 0.001632442003 | AB91: 101.9655193 | AC91: 0.9836009496 | AD91: 0.0003268492984
C92: 104.0048297 | D92: -0.166109114 | E92: 0.9592854823 | F92: 0.003312216467 | G92: -0.361042561 | H92: 0.001173850657 | I92: -0.003247132654 | J92: 0.1589665801 | K92: -0.03924621674 | L92: 0.7743454132 | M92: -4.272505852e-05 | N92: -1.807417973e-07 | O92: -0.003275749328 | P92: -0.6153788331 | Q92: -0.03920349168 | R92: 0.3873329977 | S92: -0.06750693197 | T92: -7.283124646e-05 | U92: -0.0004178821965 | V92: -1.002711831 | W92: 0.02830344029 | X92: -2.002711831 | Y92: 0.02830344029 | Z92: 2.353199224e-05 | AA92: 0.001665090843 | AB92: 104.0048297 | AC92: 0.9810576854 | AD92: 0.0004740288293
C93: 106.0849263 | D93: -0.1924465034 | E93: 0.9552854996 | F93: 0.003139717074 | G93: -0.3973362886 | H93: 0.001623335811 | I93: -0.00285780364 | J93: 0.2183193751 | K93: -0.03471551037 | L93: 0.7367937498 | M93: 0.01038257772 | N93: 4.306068649e-05 | O93: -0.003055777239 | P93: -0.5184743747 | Q93: -0.04509808809 | R93: 0.565147014 | S93: -0.07396759719 | T93: -7.823673375e-05 | U93: -0.0005977652127 | V93: -1.083621389 | W93: 0.0288695091 | X93: -2.083621389 | Y93: 0.0288695091 | Z93: 2.353199224e-05 | AA93: 0.00169839266 | AB93: 106.0849263 | AC93: 0.9780874239 | AD93: 0.0005199277515
C94: 108.2066248 | D94: -0.2238387504 | E94: 0.9547721353 | F94: 0.00298229947 | G94: -0.4020052846 | H94: 0.002034890107 | I94: -0.002369794093 | J94: 0.2719173085 | K94: -0.02869707343 | L94: 0.6762046105 | M94: 0.02272630811 | N94: 9.240691619e-05 | O94: -0.002749499939 | P94: -0.404287302 | Q94: -0.05142338154 | R94: 0.7635123908 | S94: -0.08087028082 | T94: -8.386060274e-05 | U94: -0.0007917446142 | V94: -1.167799693 | W94: 0.02944689928 | X94: -2.167799693 | Y94: 0.02944689928 | Z94: 2.353199224e-05 | AA94: 0.001732360513 | AB94: 108.2066248 | AC94: 0.9745588338 | AD94: 0.0003915134405
C95: 110.3707573 | D95: -0.2619025939 | E95: 0.9586719804 | F95: 0.002853316069 | G95: -0.3665993161 | H95: 0.002387971261 | I95: -0.001776536853 | J95: 0.3168566491 | K95: -0.02096408722 | L95: 0.5878741203 | M95: 0.03724304492 | N95: 0.0001484638081 | O95: -0.002343471936 | P95: -0.2710174712 | Q95: -0.05820713214 | R95: 0.9843613292 | S95: -0.08824296941 | T95: -8.971167603e-05 | U95: -0.001000744935 | V95: -1.2553788 | W95: 0.03003583726 | X95: -2.2553788 | Y95: 0.03003583726 | Z95: 2.353199224e-05 | AA95: 0.001767007723 | AB95: 110.3707573 | AC95: 0.9702974059 | AD95: 0.0001351505196
C96: 112.5781725 | D96: -0.3088180257 | E96: 0.9664295074 | F96: 0.002769810793 | G96: -0.2965963699 | H96: 0.002657825054 | I96: -0.001072410037 | J96: 0.3496439367 | K96: -0.01126152466 | L96: 0.4663451151 | M96: 0.05421730246 | N96: 0.0002118913115 | O96: -0.001822563528 | P96: -0.1167011785 | Q96: -0.06547882712 | R96: 1.229794925 | S96: -0.09611538113 | T96: -9.579913268e-05 | U96: -0.001225748531 | V96: -1.346496104 | W96: 0.03063655401 | X96: -2.346496104 | Y96: 0.03063655401 | Z96: 2.353199224e-05 | AA96: 0.001802347878 | AB96: 112.5781725 | AC96: 0.9650706295 | AD96: 1.846549e-06
C97: 114.8297359 | D97: -0.3675195804 | E97: 0.9742178933 | F97: 0.002753303209 | G97: -0.2268779617 | H97: 0.002814807393 | I97: -0.0002531473657 | J97: 0.3661013937 | K97: 0.0006970712572 | L97: 0.3052984581 | M97: 0.07396685831 | N97: 0.0002834080907 | O97: -0.001169767854 | P97: 0.06080293557 | Q97: -0.07326978705 | R97: 1.502097482 | S97: -0.1045190721 | T97: -0.0001021325226 | U97: -0.001467799148 | V97: -1.441294547 | W97: 0.03124928509 | X97: -2.441294547 | Y97: 0.03124928509 | Z97: 2.353199224e-05 | AA97: 0.001838394835 | AB97: 114.8297359 | AC97: 0.9585704151 | AD97: 0.000244843574
C98: 117.1263306 | D98: -0.4418980576 | E98: 0.9743332291 | F98: 0.002830626987 | G98: -0.2258497161 | H98: 0.002823608241 | I98: 0.0006836580278 | J98: 0.3612586674 | K98: 0.01523316175 | L98: 0.09742949965 | M98: 0.09684644045 | N98: 0.0003637965388 | O98: -0.0003659867579 | P98: 0.2638291678 | Q98: -0.0816132787 | R98: 1.803752014 | S98: -0.1134875495 | T98: -0.0001087217814 | U98: -0.001728005698 | V98: -1.539922846 | W98: 0.03187427079 | X98: -2.539922846 | Y98: 0.03187427079 | Z98: 2.353199224e-05 | AA98: 0.001875162732 | AB98: 117.1263306 | AC98: =SQRT(((AB98/B$32-B$32/AB98)^2*B$33*B$33+(B$34)^2)/((AB98/B$32-B$32/AB98)^2*B$33*B$33+1)/((1-B$36*B$36/AB98/AB98)^2+(B$36/AB98/B$37)^2)*((B$40)^2+(AB98/B$39)^2)/(1+(AB98/B$39)^2))*SQRT(1/((1-B$36*B$36/AB98/AB98)^2+(B$36/AB98/B$37*2.41)^2)) -> 0.9503970883 | AD98: 0.0005729388371
C99: 119.4688573 | D99: -0.5368955464 | E99: 0.9595543444 | F99: 0.003034759341 | G99: -0.3586084789 | H99: 0.00264236397 | I99: 0.001737938753 | J99: 0.3292290328 | K99: 0.03270717725 | L99: -0.1656922876 | M99: 0.1232518119 | N99: 0.0004539082127 | O99: 0.0006102067705 | P99: 0.4949213204 | Q99: -0.09054463468 | R99: 2.13745705 | S99: -0.1230563909 | T99: -0.0001155772463 | U99: -0.002007546282 | V99: -1.642535729 | W99: 0.03251175621 | X99: -2.642535729 | Y99: 0.03251175621 | Z99: 2.353199224e-05 | AA99: 0.001912665987 | AB99: 119.4688573 | AC99: 0.9400592403 | AD99: 0.0003800590831
C100: 121.8582344 | D100: -0.6581457083 | E100: 0.9309563609 | F100: 0.003405684371 | G100: -0.6214135271 | H100: 0.002221642918 | I100: 0.002906406725 | J100: 0.2630679364 | K100: 0.05352291483 | L100: -0.4937827246 | M100: 0.1536242953 | N100: 0.0005546697227 | O100: 0.001782832112 | P100: 0.756850661 | Q100: -0.1001013805 | R100: 2.506144834 | S100: -0.1332633718 | T100: -0.000122709672 | U100: -0.002307672441 | V100: -1.749294173 | W100: 0.03316199133 | X100: -2.749294173 | Y100: 0.03316199133 | Z100: 2.353199224e-05 | AA100: 0.001950919307 | AB100: 121.8582344 | AC100: 0.9270277071 | AD100: 1.543432028e-05
C101: 124.2953991 | D101: -0.8102972652 | E101: 0.8982506704 | F101: 0.003991516836 | G101: -0.9320490003 | H101: 0.001503286891 | I101: 0.004181651078 | J101: 0.1546114839 | K101: 0.07813241429 | L101: -0.8980239073 | M101: 0.1884557837 | N101: 0.0006670891162 | O101: 0.003178793258 | P101: 1.052635391 | Q101: -0.1103233694 | R101: 2.913001048 | S101: -0.1441486006 | T101: -0.0001301302477 | U101: -0.002629713688 | V101: -1.860365657 | W101: 0.03382523116 | X101: -2.860365657 | Y101: 0.03382523116 | Z101: 2.353199224e-05 | AA101: 0.001989937693 | AB101: 124.2953991 | AC101: 0.9109302761 | AD101: 0.0001607724026
C102: 126.7813071 | D102: -0.9923528509 | E102: 0.8712508604 | F102: 0.00485012275 | G102: -1.1971356 | H102: 0.0004190891182 | I102: 0.005551052326 | J102: -0.005707847029 | K102: 0.1070413641 | L102: -1.391269596 | M102: 0.2282942896 | N102: 0.000792262794 | O102: 0.00482820284 | P102: 1.385561749 | Q102: -0.1212529255 | R102: 3.361486179 | S102: -0.1557546613 | T102: -0.0001378506147 | U102: -0.0029750823 | V102: -1.97592443 | W102: 0.03450173578 | X102: -2.97592443 | Y102: 0.03450173578 | Z102: 2.353199224e-05 | AA102: 0.002029736446 | AB102: 126.7813071 | AC102: 0.8920359504 | AD102: 0.0004320199654
C103: 129.3169332 | D103: -1.188406283 | E103: 0.8543189227 | F103: 0.006051233491 | G103: -1.367599482 | H103: -0.001110713465 | I103: 0.006995479928 | J103: -0.2290713402 | K103: 0.1408150934 | L103: -1.988278221 | M103: 0.2737500889 | N103: 0.0009313830067 | O103: 0.006764741357 | P103: 1.759206881 | Q103: -0.1329349955 | R103: 3.855358658 | S103: -0.168126766 | T103: -0.0001458828844 | U103: -0.003345278416 | V103: -2.096151777 | W103: 0.0351917705 | X103: -3.096151777 | Y103: 0.0351917705 | Z103: 2.353199224e-05 | AA103: 0.002070331175 | AB103: 129.3169332 | AC103: 0.8721269074 | AD103: 0.0003171243194
C104: 131.9032719 | D104: -1.357513892 | E104: 0.8472227354 | F104: 0.007678880926 | G104: -1.440047967 | H104: -0.003179158589 | I104: 0.008487734952 | J104: -0.5285135013 | K104: 0.1800852131 | L104: -2.705977132 | M104: 0.3255025232 | N104: 0.001085745977 | O104: 0.009026055329 | P104: 2.177463631 | Q104: -0.1454173101 | R104: 4.39869994 | S104: -0.181312916 | T104: -0.0001542396579 | U104: -0.003741895442 | V104: -2.221236309 | W104: 0.03589560591 | X104: -3.221236309 | Y104: 0.03589560591 | Z104: 2.353199224e-05 | AA104: 0.002111737799 | AB104: 131.9032719 | AC104: 0.8553114883 | AD104: 6.542792381e-05
C105: 134.5413373 | D105: -1.440414822 | E105: 0.847766859 | F105: 0.009834068847 | G105: -1.434471298 | H105: -0.005894515974 | I105: 0.009990693184 | J105: -0.9191947798 | K105: 0.2255569747 | L105: -3.563762185 | M105: 0.3843075295 | N105: 0.001256760698 | O105: 0.01165419855 | P105: 2.644567405 | Q105: -0.1587505548 | R105: 4.995941661 | S105: -0.1953640728 | T105: -0.000162934045 | U105: -0.004166625787 | V105: -2.351374255 | W105: 0.03661351803 | X105: -3.351374255 | Y105: 0.03661351803 | Z105: 2.353199224e-05 | AA105: 0.002153972555 | AB105: 134.5413373 | AC105: 0.8471869531 | AD105: 3.362908105e-07
C106: 137.2321641 | D106: -1.399162818 | E106: 0.8534916269 | F106: 0.01263775396 | G106: -1.376014703 | H106: -0.009382515609 | I106: 0.01145509665 | J106: -1.418712004 | K106: 0.2780174227 | L106: -4.58383729 | M106: 0.4510059743 | N106: 0.001445958473 | O106: 0.014696121 | P106: 3.165125286 | Q106: -0.1729885516 | R106: 5.651895062 | S106: -0.2103343399 | T106: -0.0001719796854 | U106: -0.004621266955 | V106: -2.486769775 | W106: 0.03734578839 | X106: -3.486769775 | Y106: 0.03734578839 | Z106: 2.353199224e-05 | AA106: 0.002197052006 | AB106: 137.2321641 | AC106: 0.8512200784 | AD106: 5.159932424e-06
C107: 139.9768073 | D107: -1.253643213 | E107: 0.8623461995 | F107: 0.01623427288 | G107: -1.286366926 | H107: -0.01378888318 | I107: 0.01281693295 | J107: -2.047451564 | K107: 0.3383444267 | L107: -5.791599144 | M107: 0.5265328782 | N107: 0.001655003242 | O107: 0.01820421052 | P107: 3.74414758 | Q107: -0.1881884515 | R107: 6.371782854 | S107: -0.2262811556 | T107: -0.0001813907696 | U107: -0.005107728006 | V107: -2.627635274 | W107: 0.03809270415 | X107: -3.627635274 | Y107: 0.03809270415 | Z107: 2.353199224e-05 | AA107: 0.002240993046 | AB107: 139.9768073 | AC107: 0.8656011791 | AD107: 1.059489244e-05
C108: 142.7763435 | D108: -1.061563694 | E108: 0.8728255926 | F108: 0.02079534174 | G108: -1.181450561 | H108: -0.01928222355 | I108: 0.01399433203 | J108: -2.828991036 | K108: 0.4075166841 | L108: -7.216073041 | M108: 0.6119276233 | N108: 0.001885702776 | O108: 0.02223689281 | P108: 4.387082004 | Q108: -0.2044109392 | R108: 7.161273744 | S108: -0.2432654975 | T108: -0.0001911820617 | U108: -0.005628036416 | V108: -2.774191739 | W108: 0.03885455824 | X108: -3.774191739 | Y108: 0.03885455824 | Z108: 2.353199224e-05 | AA108: 0.002285812907 | AB108: 142.7763435 | AC108: 0.8849562795 | AD108: 0.0001471535637
C109: 145.6318704 | D109: -0.8725612015 | E109: 0.8839059084 | F109: 0.02652473711 | G109: -1.071879262 | H109: -0.02605729862 | I109: 0.01488389831 | J109: -3.790555682 | K109: 0.4866247984 | L109: -8.890406412 | M109: 0.7083452483 | N109: 0.002140020804 | O109: 0.02685929598 | P109: 5.09985073 | Q109: -0.22172045 | R109: 8.026519815 | S109: -0.2613520994 | T109: -0.0002013689219 | U109: -0.006184345355 | V109: -2.926669086 | W109: 0.0396316494 | X109: -3.926669086 | Y109: 0.0396316494 | Z109: 2.353199224e-05 | AA109: 0.002331529165 | AB109: 145.6318704 | AC109: 0.9044237117 | AD109: 0.0004209802532
C110: 148.5445078 | D110: -0.7103486339 | E110: 0.8949305206 | F110: 0.03366376503 | G110: -0.964213611 | H110: -0.0343387518 | I110: 0.01535638318 | J110: -4.9635371 | K110: 0.5768835465 | L110: -10.85242762 | M110: 0.8170689462 | N110: 0.002420090147 | O110: 0.03214398646 | P110: 5.888890516 | Q110: -0.2401853998 | R110: 8.974197033 | S110: -0.2806096821 | T110: -0.0002119673313 | U110: -0.006778941414 | V110: -3.085306517 | W110: 0.04042428239 | X110: -4.085306517 | Y110: 0.04042428239 | Z110: 2.353199224e-05 | AA110: 0.002378159748 | AB110: 148.5445078 | AC110: 0.9214729019 | AD110: 0.0007044980087
C111: 151.5153979 | D111: -0.5797960769 | E111: 0.9055035122 | F111: 0.04249763619 | G111: -0.8621972172 | H111: -0.04438533822 | I111: 0.01525158704 | J111: -6.384082248 | K111: 0.6796454602 | L111: -13.14527845 | M111: 0.93952389 | N111: 0.00272822695 | O111: 0.03817178392 | P111: 6.761196198 | Q111: -0.2598784299 | R111: 10.0115491 | S111: -0.3011111979 | T111: -0.0002229939164 | U111: -0.007414252801 | V111: -3.2503529 | W111: 0.04123276804 | X111: -4.2503529 | Y111: 0.04123276804 | Z111: 2.353199224e-05 | AA111: 0.002425722943 | AB111: 151.5153979 | AC111: 0.9354276354 | AD111: 0.0008954531527
C112: 154.5457059 | D112: -0.4774765911 | E112: 0.9154057087 | F112: 0.05336288507 | G112: -0.767727671 | H112: -0.05649472753 | I112: 0.01437236286 | J112: -8.093762127 | K112: 0.796415862 | L112: -15.81812993 | M112: 1.077292528 | N112: 0.003066946095 | O112: 0.0450326634 | P112: 7.724367798 | Q112: -0.2808766662 | R112: 11.14643496 | S112: -0.3229340896 | T112: -0.0002344659756 | U112: -0.008092858046 | V112: -3.422067157 | W112: 0.0420574234 | X112: -4.422067157 | Y112: 0.0420574234 | Z112: 2.353199224e-05 | AA112: 0.002474237402 | AB112: 154.5457059 | AC112: 0.9465121004 | AD112: 0.0009676076071
C113: 157.63662 | D113: -0.3978192155 | E113: 0.9245335563 | F113: 0.06665599356 | G113: -0.681546427 | H113: -0.07100895475 | I113: 0.01247757214 | J113: -10.14033063 | K113: 0.9288695091 | L113: -18.9269922 | M113: 1.232131504 | N113: 0.003438977903 | O113: 0.05282675408 | P113: 8.786661569 | Q113: -0.3032619946 | R113: 12.38738024 | S113: -0.3461605665 | T113: -0.0002464015059 | U113: -0.008817495235 | V113: -3.60071867 | W113: 0.04289857187 | X113: -4.60071867 | Y113: 0.04289857187 | Z113: 2.353199224e-05 | AA113: 0.00252372215 | AB113: 157.63662 | AC113: 0.9552323881 | AD113: 0.0009424182766
C114: 160.7893524 | D114: -0.3355832577 | E114: 0.9328565984 | F114: 0.08284340628 | G114: -0.6037022446 | H114: -0.08832060434 | I114: 0.00927382078 | J114: -12.57858539 | K114: 1.078869014 | L114: -22.53563069 | M114: 1.405990367 | N114: 0.003847286218 | O114: 0.06166544479 | P114: 9.95704529 | Q114: -0.3271213527 | R114: 13.74363299 | S114: -0.370877896 | T114: -0.0002588192317 | U114: -0.009591071807 | V114: -3.786587705 | W114: 0.0437565433 | X114: -4.786587705 | Y114: 0.0437565433 | Z114: 2.353199224e-05 | AA114: 0.002574196593 | AB114: 160.7893524 | AC114: 0.962101379 | AD114: 0.0008552571926
C115: 164.0051394 | D115: -0.2865363243 | E115: 0.9403887727 | F115: 0.1024731549 | G115: -0.5338512913 | H115: -0.1088798239 | I115: 0.004405774663 | J115: -15.47134409 | K115: 1.248485232 | L115: -26.71660226 | M115: 1.601032273 | N115: 0.004295087998 | O115: 0.07167260751 | P115: 11.24525817 | Q115: -0.3525470404 | R115: 15.22522402 | S115: -0.3971787146 | T115: -0.0002717386336 | U115: -0.01041667496 | V115: -3.979965848 | W115: 0.04463167417 | X115: -4.979965848 | Y115: 0.04463167417 | Z115: 2.353199224e-05 | AA115: 0.002625680525 | AB115: 164.0051394 | AC115: 0.9675494798 | AD115: 0.0007377040126
C116: 167.2852422 | D116: -0.2474578325 | E116: 0.9471694867 | F116: 0.1261883424 | G116: -0.4714460264 | H116: -0.1332022764 | I116: -0.002555176821 | J116: -18.89055119 | K116: 1.440019821 | L116: -31.55242693 | M116: 1.81965687 | N116: 0.004785874539 | O116: 0.08298595147 | P116: 12.66187574 | Q116: -0.3796370485 | R116: 16.84303221 | S116: -0.4251613561 | T116: -0.0002851799793 | U116: -0.01129758269 | V116: -4.181156468 | W116: 0.04552430765 | X116: -5.181156468 | Y116: 0.04552430765 | Z116: 2.353199224e-05 | AA116: 0.002678194136 | AB116: 167.2852422 | AC116: 0.9719123672 | AD116: 0.0006122101367
C117: 170.6309471 | D117: -0.2159532309 | E117: 0.9532514041 | F117: 0.1547427782 | G117: -0.4158509271 | H117: -0.1618781533 | I117: -0.01212417786 | J117: -22.91853246 | K117: 1.656030204 | L117: -37.13691259 | M117: 2.064525612 | N117: 0.005323434456 | O117: 0.09575852146 | P117: 14.21838014 | Q117: -0.4084954079 | R117: 18.60885532 | S117: -0.4549302017 | T117: -0.0002991643554 | U117: -0.01223727549 | V117: -4.390475189 | W117: 0.04643479381 | X117: -5.390475189 | Y117: 0.04643479381 | Z117: 2.353199224e-05 | AA117: 0.002731758018 | AB117: 170.6309471 | AC117: 0.9754439927 | AD117: 0.0004925109886
C118: 174.043566 | D118: -0.1902531638 | E118: 0.958692743 | F118: 0.189019098 | G118: -0.3664112018 | H118: -0.1955823881 | I118: -0.02491839478 | J118: -27.64941622 | K118: 1.899357185 | L118: -43.57665248 | M118: 2.338589745 | N118: 0.005911878577 | O118: 0.1101603557 | P118: 15.92723626 | Q118: -0.4392325605 | R118: 20.53548665 | S118: -0.4865960502 | T118: -0.0003137137003 | U118: -0.01323944882 | V118: -4.608250387 | W118: 0.04736348968 | X118: -5.608250387 | Y118: 0.04736348968 | Z118: 2.353199224e-05 | AA118: 0.002786393179 | AB118: 174.043566 | AC118: 0.9783344393 | AD118: 0.0003857962333
C119: 177.5244373 | D119: -0.1690472315 | E119: 0.9635525567 | F119: 0.2300497564 | G119: -0.3224918378 | H119: -0.2350862259 | I119: -0.04167509587 | J119: -33.19074343 | K119: 2.173155507 | L119: -50.99271767 | M119: 2.645121259 | N119: 0.006555666905 | O119: 0.1263803202 | P119: 17.80197424 | Q119: -0.4719657521 | R119: 22.63679794 | S119: -0.5202765115 | T119: -0.0003288508388 | U119: -0.01430802626 | V119: -4.834823703 | W119: 0.04831075948 | X119: -5.834823703 | Y119: 0.04831075948 | Z119: 2.353199224e-05 | AA119: 0.002842121042 | AB119: 177.5244373 | AC119: 0.9807258857 | AD119: 0.0002949232301
C120: 181.0749261 | D120: -0.1513584568 | E120: 0.9678879605 | F120: 0.2790413374 | G120: -0.283498245 | H120: -0.2812703269 | I120: -0.06327273865 | J120: -39.66529093 | K120: 2.480927648 | L120: -59.5225697 | M120: 2.987747098 | N120: 0.007259637816 | O120: 0.1446281374 | P120: 19.85727877 | Q120: -0.5068194497 | R120: 24.92782935 | S120: -0.5560964244 | T120: -0.0003445995176 | U120: -0.01544717353 | V120: -5.07055058 | W120: 0.04927697466 | X120: -6.07055058 | Y120: 0.04927697466 | Z120: 2.353199224e-05 | AA120: 0.002898963463 | AB120: 181.0749261 | AC120: 0.9827251646 | AD120: 0.0002201426247
C121: 184.6964246 | D121: -0.1364519848 | E121: 0.9717526084 | F121: 0.3374026962 | G121: -0.2488856987 | H121: -0.3351396022 | I121: -0.09075554602 | J121: -47.21313574 | K121: 2.826561207 | L121: -69.3222216 | M121: 3.370486992 | N121: 0.008029039687 | O121: 0.1651366315 | P121: 22.10908586 | Q121: -0.5439257848 | R121: 27.42488669 | S121: -0.594188299 | T121: -0.0003609844431 | U121: -0.01666131336 | V121: -5.315800824 | W121: 0.05026251416 | X121: -6.315800824 | Y121: 0.05026251416 | Z121: 2.353199224e-05 | AA121: 0.002956942733 | AB121: 184.6964246 | AC121: 0.9844131371 | AD121: 0.0001602889852
C122: 188.3903531 | D122: -0.1237696324 | E122: 0.9751959596 | F122: 0.4067775273 | G122: -0.2181621347 | H122: -0.3978400085 | I122: -0.125362128 | J122: -55.99399175 | K122: 3.214370253 | L122: -80.56867941 | M122: 3.797795276 | N122: 0.008869565136 | O122: 0.1881642106 | P122: 24.57468766 | Q122: -0.5834250231 | R122: 30.14564684 | S122: -0.6346927876 | T122: -0.0003780313195 | U122: -0.01795514125 | V122: -5.570959177 | W122: 0.05126776444 | X122: -6.570959177 | Y122: 0.05126776444 | Z122: 2.353199224e-05 | AA122: 0.003016081587 | AB122: 188.3903531 | AC122: 0.9858515382 | AD122: 0.0001135413543
C123: 192.1581602 | D123: -0.1128831082 | E123: 0.9782630335 | F123: 0.48908204 | G123: -0.1908871447 | H123: -0.4706775543 | I123: -0.168558792 | J123: -66.18985398 | K123: 3.649141058 | L123: -93.4626999 | M123: 4.274607121 | N123: 0.00978738812 | O123: 0.2139976126 | P123: 27.27284592 | Q123: -0.6254660634 | R123: 33.10927185 | S123: -0.6777591831 | T123: -0.0003957668897 | U123: -0.0193336422 | V123: -5.836425928 | W123: 0.05229311973 | X123: -6.836425928 | Y123: 0.05229311973 | Z123: 2.353199224e-05 | AA123: 0.003076403219 | AB123: 192.1581602 | AC123: 0.9870879372 | AD123: 7.78789246e-05
C124: 196.0013234 | D124: -0.103460477 | E124: 0.9809944569 | F124: 0.5865485302 | G124: -0.1666689322 | H124: -0.5551398066 | I124: -0.2220782861 | J124: -78.00799052 | K124: 4.136182669 | L124: -108.2319055 | M124: 4.806389636 | N124: 0.01078920409 | O124: 0.2429549425 | P124: 30.22391497 | Q124: -0.6702069668 | R124: 36.3365325 | S124: -0.723545949 | T124: -0.000414218977 | U124: -0.02080210848 | V124: -6.112617535 | W124: 0.05333898212 | X124: -7.112617535 | Y124: 0.05333898212 | Z124: 2.353199224e-05 | AA124: 0.003137931283 | AB124: 196.0013234 | AC124: 0.9881593314 | AD124: 5.133542772e-05
C125: 199.9213498 | D125: -0.09524196612 | E125: 0.9834266772 | F125: 0.701775756 | G125: -0.1451602977 | H125: -0.6529202196 | I125: -0.2879648324 | J125: -91.68432697 | K125: 4.681382833 | L125: -125.1343018 | M125: 5.399198352 | N125: 0.01188227351 | O125: 0.2753890304 | P125: 33.44997481 | Q125: -0.717815519 | R125: 39.8499421 | S125: -0.7722212808 | T125: -0.0004334165286 | U125: -0.02236615851 | V125: -6.399967284 | W125: 0.05440576177 | X125: -7.399967284 | Y125: 0.05440576177 | Z125: 2.353199224e-05 | AA125: 0.003200689909 | AB125: 199.9213498 | AC125: 0.9890947614 | AD125: 3.212717892e-05
C126: 203.9197768 | D126: -0.08802237167 | E126: 0.9855922625 | F126: 0.8377871636 | G126: -0.1260542928 | H126: -0.7659456525 | I126: -0.368626445 | J126: -107.4872743 | K126: 5.291269835 | L126: -144.4622497 | M126: 6.059739661 | N126: 0.01307446891 | O126: 0.3116911449 | P126: 36.97497534 | Q126: -0.768469826 | R126: 43.6739013 | S126: -0.823963703 | T126: -0.0004533896613 | U126: -0.0240317568 | V126: -6.698925962 | W126: 0.055493877 | X126: -7.698925962 | Y126: 0.055493877 | Z126: 2.353199224e-05 | AA126: 0.003264703707 | AB126: 203.9197768 | AC126: 0.9899172254 | AD126: 1.870530412e-05
C127: 207.9981724 | D127: -0.08163814902 | E127: 0.9875202378 | F127: 0.9980981672 | G127: -0.1090799071 | H127: -0.896407487 | I127: -0.4668956749 | J127: -125.7220574 | K127: 5.973080869 | L127: -166.5469499 | M127: 6.795439815 | N127: 0.01437432597 | O127: 0.3522950996 | P127: 40.82489247 | Q127: -0.8223589469 | R127: 47.83485504 | S127: -0.8789627014 | T127: -0.0004741697086 | U127: -0.02580523524 | V127: -7.009962571 | W127: 0.05660375454 | X127: -8.009962571 | Y127: 0.05660375454 | Z127: 2.353199224e-05 | AA127: 0.003329997781 | AB127: 207.9981724 | AC127: 0.9906450927 | AD127: 9.764718075e-06
C128: 212.1581358 | D128: -0.07595785282 | E128: 0.9892364277 | F128: 1.186793873 | G128: -0.09399799063 | H128: -1.046796811 | I128: -0.5861001079 | J128: -146.7356087 | K128: 6.734837632 | L128: -191.763506 | M128: 7.614521198 | N128: 0.01579109866 | O128: 0.3976817929 | P128: 45.02789724 | Q128: -0.8796835655 | R128: 52.3614623 | S128: -0.9374193951 | T128: -0.0004957892698 | U128: -0.0276933156 | V128: -7.333565059 | W128: 0.05773582963 | X128: -8.333565059 | Y128: 0.05773582963 | Z128: 2.353199224e-05 | AA128: 0.003396597737 | AB128: 212.1581358 | AC128: 0.9912931551 | AD128: 4.230127442e-06
C129: 216.4012985 | D129: -0.07087499146 | E129: 0.9907637875 | F129: 1.408618843 | G129: -0.08059750561 | H129: -1.219944191 | I129: -0.730144138 | J129: -170.9221004 | K129: 7.585429898 | L129: -220.5366394 | M129: 8.526086601 | N129: 0.01733481913 | O129: 0.4483842277 | P129: 49.61453895 | Q129: -0.9406567028 | R129: 57.28478003 | S129: -0.999547249 | T129: -0.0005182822612 | U129: -0.02970313345 | V129: -7.670241087 | W129: 0.05889054623 | X129: -8.670241087 | Y129: 0.05889054623 | Z129: 2.353199224e-05 | AA129: 0.003464529692 | AB129: 216.4012985 | AC129: 0.9918734157 | AD129: 1.231274753e-06
C130: 220.7293245 | D130: -0.0663026371 | E130: 0.992122714 | F130: 1.66908075 | G130: -0.06869214747 | H130: -1.419064629 | I130: -0.9036037806 | J130: -198.7291968 | K130: 8.534707901 | L130: -253.3471402 | M130: 9.540212375 | N130: 0.01901636243 | O130: 0.50499306 | P130: 54.61794345 | Q130: -1.005504473 | R130: 62.63846228 | S130: -1.06557283 | T130: -0.0005416839695 | U130: -0.03184226355 | V130: -8.020518827 | W130: 0.06006835715 | X130: -9.020518827 | Y130: 0.06006835715 | Z130: 2.353199224e-05 | AA130: 0.003533820285 | AB130: 220.7293245 | AC130: =SQRT(((AB130/B$32-B$32/AB130)^2*B$33*B$33+(B$34)^2)/((AB130/B$32-B$32/AB130)^2*B$33*B$33+1)/((1-B$36*B$36/AB130/AB130)^2+(B$36/AB130/B$37)^2)*((B$40)^2+(AB130/B$39)^2)/(1+(AB130/B$39)^2))*SQRT(1/((1-B$36*B$36/AB130/AB130)^2+(B$36/AB130/B$37*2.41)^2)) -> 0.992395687 | AD130: 7.451427648e-08
C131: 225.143911 | D131: =LOG(AC131)*20 -> -0.062169324 | E131: 0.9933313296 | F131: 1.974570023 | G131: -0.05811733392 | H131: -1.647808362 | I131: -1.111836556 | J131: -230.6651198 | K131: 9.593584469 | L131: -290.7391477 | M131: 10.66805136 | N131: 0.02084751665 | O131: 0.5681627338 | P131: 60.07402792 | Q131: -1.074466887 | R131: 68.45897571 | S131: -1.135736611 | T131: -0.0005660311068 | U131: -0.03411874673 | V131: -8.384947788 | W131: 0.06126972429 | X131: -9.384947788 | Y131: 0.06126972429 | Z131: =$B$24 -> 2.353199224e-05 | AA131: 0.003604496691 | AB131: =C131 -> 225.143911 | AC131: 0.992868046 | AD131: =(AC131-E131)^2 -> 2.14631672e-07
C132: =C131*1.02 -> 229.6467892 | D132: -0.05841590037 | E132: =F132/SQRT(H132^2+I132^2) -> 0.9944057405 | F132: =SQRT((J132-1)^2+K132^2)*C132*B$14 -> 2.332497959 | G132: =LOG(E132)*20 -> -0.04872754494 | H132: =N132+B$15*J132-(C132*B$14-1/C132/B$13)*K132 -> -1.91031827 | I132: =O132+B$15*K132+(C132*B$14-1/C132/B$13)*J132 -> -1.361108786 | J132: =L132+P132 -> -267.3066326 | K132: =M132+Q132 -> 10.77414791 | L132: =-C132*B$16*O132 -> -333.328366 | M132: =C132*B$16*N132 -> 11.92194661 | N132: =T132+$B$18*P132-C132*$B$17*Q132 -> 0.02284105884 | O132: =U132+$B$18*Q132+C132*$B$17*P132 -> 0.6386182617 | P132: =R132+V132 -> 66.02173337 | Q132: =S132+W132 -> -1.147798702 | R132: =-C132*$B$19*U132 -> 74.78583305 | S132: =C132*$B$19*T132 -> -1.210293821 | T132: =Z132+V132*$B$21-C132*$B$20*W132 -> -0.0005913618685 | U132: =AA132+$B$21*W132+C132*$B$20*V132 -> -0.03654111853 | V132: =1+X132 -> -8.764099678 | W132: =Y132 -> 0.06249511878 | X132: =-C132*$B$22*AA132 -> -9.764099678 | Y132: =C132*$B$22*Z132 -> 0.06249511878 | Z132: 2.353199224e-05 | AA132: =C132*$B$23 -> 0.003676586625 | AB132: 229.6467892 | AC132: 0.9932971857 | AD132: 1.22889389e-06
C133: 234.239725 | D133: -0.05499309232 | E133: 0.9953602675 | F133: 2.751456073 | G133: -0.04039398549 | H133: -2.211294729 | I133: -1.658743014 | J133: -309.3080591 | K133: 12.08978679 | L133: -381.8113356 | M133: 13.31555712 | N133: 0.02501083725 | O133: 0.7171627207 | P133: 72.50327651 | Q133: -1.225770328 | R133: 81.66184581 | S133: -1.289515349 | T133: -0.0006177159929 | U133: -0.0391184395 | V133: -9.158569305 | W133: 0.06374502115 | X133: -10.15856931 | Y133: 0.06374502115 | Z133: 2.353199224e-05 | AA133: 0.003750118358 | AB133: 234.239725 | AC133: 0.9936886868 | AD133: 2.794182107e-06
C134: 238.9245195 | D134: -0.05185960421 | E134: 0.9962076515 | F134: 3.24139996 | G134: -0.03300253917 | H134: -2.556068871 | I134: -2.013288651 | J134: -357.4114714 | K134: 13.55532787 | L134: -436.9758938 | M134: 14.86399666 | N134: 0.02737186034 | O134: 0.8046855371 | P134: 79.56442235 | Q134: -1.308668784 | R134: 89.13339786 | S134: -1.373688706 | T134: -0.0006451348239 | U134: -0.04186032737 | V134: -9.568975505 | W134: 0.06501992158 | X134: -10.56897551 | Y134: 0.06501992158 | Z134: 2.353199224e-05 | AA134: 0.003825120725 | AB134: 238.9245195 | AC134: 0.9940472308 | AD134: 4.667417471e-06
C135: 243.7030099 | D135: -0.04898062611 | E135: 0.9969592357 | F135: 3.813861373 | G135: -0.02645198048 | H135: -2.950685335 | I135: -2.434719461 | J135: -412.4581976 | K135: 15.18718851 | L135: -499.7129771 | M135: 16.58398723 | N135: 0.02994039318 | O135: 0.9021716434 | P135: 87.25477955 | Q135: -1.396798719 | R135: 97.25074166 | S135: -1.463119039 | T135: -0.0006736613758 | U135: -0.04477699125 | V135: -9.995962115 | W135: 0.06632032001 | X135: -10.99596212 | Y135: 0.06632032001 | Z135: 2.353199224e-05 | AA135: 0.003901623139 | AB135: 243.7030099 | AC135: 0.9943767669 | AD135: 6.669145106e-06
C136: 248.5770701 | D136: -0.04632665303 | E136: 0.9976251273 | F136: 4.482192808 | G136: -0.0206524151 | H136: -3.401995718 | I136: -2.934662015 | J136: -475.4018163 | K136: 17.00354514 | L136: -571.0299363 | M136: 18.49402863 | N136: 0.03273406183 | O136: 1.010711599 | P136: 95.62812003 | Q136: -1.49048349 | R136: 106.068319 | S136: -1.558130217 | T136: -0.0007033404003 | U136: -0.04787926782 | V136: -10.44019898 | W136: 0.06764672641 | X136: -11.44019898 | Y136: 0.06764672641 | Z136: 2.353199224e-05 | AA136: 0.003979655602 | AB136: 248.5770701 | AC136: 0.9946806451 | AD136: 8.669975535e-06
C137: 253.5486115 | D137: -0.04387254433 | E137: 0.9982143389 | F137: 5.261849543 | G137: -0.01552391953 | H137: -3.917764098 | I137: -3.52665989 | J137: -547.3228306 | K137: 19.02451945 | L137: -652.0655558 | M137: 20.61458576 | N137: 0.03577196633 | O137: 1.131512774 | P137: 104.7427252 | Q137: -1.590066309 | R137: 115.6451083 | S137: -1.65906597 | T137: -0.0007342184574 | U137: -0.05117865987 | V137: -10.90238302 | W137: 0.06899966094 | X137: -11.90238302 | Y137: 0.06899966094 | Z137: 2.353199224e-05 | AA137: 0.004059248714 | AB137: 253.5486115 | AC137: 0.9949617216 | AD137: 1.057951943e-05
C138: 258.6195837 | D138: -0.04159676993 | E138: 0.9987349139 | F138: 6.170714806 | G138: -0.01099535466 | H138: -4.50678619 | I138: -4.226479124 | J138: -629.445236 | K138: 21.27238412 | L138: -744.1069969 | M138: 22.96829557 | N138: 0.03907480305 | O138: 1.265911711 | P138: 114.6617609 | Q138: -1.695911459 | R138: 126.0450002 | S138: -1.766291113 | T138: -0.000766343988 | U138: -0.05468737707 | V138: -11.3832393 | W138: 0.07037965416 | X138: -12.3832393 | Y138: 0.07037965416 | Z138: 2.353199224e-05 | AA138: 0.004140433688 | AB138: 258.6195837 | AC138: 0.9952224439 | AD138: 1.233744569e-05
C139: 263.7919754 | D139: -0.03948080236 | E139: 0.9991940367 | F139: 7.229474609 | G139: -0.007003330519 | H139: -5.179023856 | I139: -5.052461263 | J139: -723.155224 | K139: 23.77179017 | L139: -848.608907 | M139: 25.58019575 | N139: 0.04266499717 | O139: 1.415387785 | P139: 125.453683 | Q139: -1.808405587 | R139: 137.3372052 | S139: -1.880192834 | T139: -0.0007997673901 | U139: -0.0584183793 | V139: -11.88352217 | W139: 0.07178724724 | X139: -12.88352217 | Y139: 0.07178724724 | Z139: 2.353199224e-05 | AA139: 0.004223242362 | AB139: 263.7919754 | AC139: 0.9954649193 | AD139: 1.390631668e-05
C140: 269.0678149 | D140: -0.03750862372 | E140: 0.9995981298 | F140: 8.462049771 | G140: -0.003491302101 | H140: -5.945756958 | I140: -6.025931307 | J140: -830.0222962 | K140: 26.55001822 | L140: -967.2149732 | M140: 28.47797729 | N140: 0.04656684613 | O140: 1.581578297 | P140: 137.192677 | Q140: -1.92795907 | R140: 149.5966935 | S140: -2.001182062 | T140: -0.0008345410976 | U140: -0.06238542267 | V140: -12.40401646 | W140: 0.07322299218 | X140: -13.40401646 | Y140: 0.07322299218 | Z140: 2.353199224e-05 | AA140: 0.004307707209 | AB140: 269.0678149 | AC140: 0.9956909707 | AD140: 1.52658917e-05
C141: 274.4491712 | D141: -0.03566632368 | E141: 0.9999529387 | F141: 9.896093793 | G141: -0.0004087790287 | H141: -6.819754758 | I141: -7.171668965 | J141: -951.8230952 | K141: 29.63725607 | L141: -1101.782229 | M141: 31.69226355 | N141: 0.05080667489 | O141: 1.766295154 | P141: 149.9591341 | Q141: -2.055007475 | R141: 162.9046728 | S141: -2.129694927 | T141: -0.0008707196629 | U141: -0.06660310825 | V141: -12.94553873 | W141: 0.07468745203 | X141: -13.94553873 | Y141: 0.07468745203 | Z141: 2.353199224e-05 | AA141: 0.004393861353 | AB141: 274.4491712 | AC141: 0.9959021818 | AD141: 1.64086313e-05
C142: 279.9381546 | D142: -0.03394176998 | E142: 1.000263608 | F142: 11.56356654 | G142: 0.002289366242 | H142: -7.815469368 | I142: -8.518452929 | J142: -1090.568301 | K142: 33.06690547 | L142: -1254.408467 | M142: 35.25691857 | N142: 0.05541300406 | O142: 1.971543297 | P142: 163.8401656 | Q142: -2.190013097 | R142: 177.3491041 | S142: -2.266194298 | T142: -0.0009083598422 | U142: -0.0710869339 | V142: -13.50893849 | W142: 0.07618120107 | X142: -14.50893849 | Y142: 0.07618120107 | Z142: 2.353199224e-05 | AA142: 0.004481738581 | AB142: 279.9381546 | AC142: 0.9960999344 | AD142: 1.733617584e-05
C143: 285.5369177 | D143: -0.03232433697 | E143: 1.000534746 | F143: 13.50139517 | G143: 0.004643504692 | H143: -8.949254062 | I143: -10.09968932 | J143: -1248.532986 | K143: 36.87592101 | L143: -1427.463148 | M143: 39.20938761 | N143: 0.06041673195 | O143: 2.199541071 | P143: 178.9301618 | Q143: -2.333466597 | R143: 193.0252614 | S143: -2.411171422 | T143: -0.0009475206847 | U143: -0.0758533492 | V143: -14.09509961 | W143: 0.07770482509 | X143: -15.09509961 | Y143: 0.07770482509 | Z143: 2.353199224e-05 | AA143: 0.004571373352 | AB143: 285.5369177 | AC143: 0.9962854393 | AD143: 1.805660887e-05
C144: 291.2476561 | D144: -0.03080468102 | E144: 1.000770486 | F144: 15.75223556 | G144: 0.006689782825 | H144: -10.23960963 | I144: -11.95413715 | J144: -1428.290864 | K144: 41.10518461 | L144: -1623.622258 | M144: 43.59107335 | N144: 0.06585133164 | O144: 2.452742719 | P144: 195.3313948 | Q144: -2.485888742 | R144: 210.0363364 | S144: -2.565147664 | T144: -0.0009882636253 | U144: -0.08091981377 | V144: -14.70494163 | W144: 0.07925892159 | X144: -15.70494163 | Y144: 0.07925892159 | Z144: 2.353199224e-05 | AA144: 0.004662800819 | AB144: 291.2476561 | AC144: 0.9964597615 | AD144: 1.858234894e-05
C145: 297.0726092 | D145: -0.02937455382 | E145: 1.000974536 | F145: 18.36534925 | G145: 0.008460590314 | H145: -11.70746238 | I145: -14.12674565 | J145: -1632.752935 | K145: 45.79991927 | L145: -1845.907608 | M145: 48.44775152 | N145: 0.07175306433 | O145: 2.733863249 | P145: 213.154673 | Q145: -2.647832249 | R145: 228.4940943 | S145: -2.728676349 | T145: -0.001030652581 | U145: -0.08630485917 | V145: -15.33942127 | W145: 0.08084410002 | X145: -16.33942127 | Y145: 0.08084410002 | Z145: 2.353199224e-05 | AA145: 0.004756056836 | AB145: 297.0726092 | AC145: 0.9966238416 | AD145: 1.892854187e-05
C146: 303.0140614 | D146: -0.02802664652 | E146: 1.001150223 | F146: 21.39761354 | G146: 0.00998497164 | H146: -13.37647771 | I146: -16.66962046 | J146: -1865.211095 | K146: 51.01014612 | L146: -2097.731144 | M146: 53.83002986 | N146: 0.07816121034 | O146: 3.045905893 | P146: 232.5200492 | Q146: -2.819883738 | R146: 248.5195831 | S146: -2.90234472 | T146: -0.00107475405 | U146: -0.09202815453 | V146: -15.99953389 | W146: 0.08246098202 | X146: -16.99953389 | Y146: 0.08246098202 | Z146: 2.353199224e-05 | AA146: 0.004851177972 | AB146: 303.0140614 | AC146: 0.9967785132 | AD146: 1.911184926e-05
C147: 309.0743426 | D147: -0.02675445908 | E147: 1.001300538 | F147: 24.91468464 | G147: 0.01128898896 | H147: -15.273414 | I147: -19.64313835 | J147: -2129.387318 | K147: 56.79118945 | L147: -2382.944904 | M147: 59.79385527 | N147: 0.08511831923 | O147: 3.392192461 | P147: 253.5575862 | Q147: -3.002665814 | R147: 270.2439013 | S147: -3.086776016 | T147: -0.001120637219 | U147: -0.0981105763 | V147: -16.68631506 | W147: 0.08411020167 | X147: -17.68631506 | Y147: 0.08411020167 | Z147: 2.353199224e-05 | AA147: 0.004948201532 | AB147: 309.0743426 | AC147: 0.9969245181 | AD147: 1.914954903e-05
C148: 315.2558294 | D148: -0.02555219034 | E148: 1.001428166 | F148: 28.99233698 | G148: 0.01239604247 | H148: -17.42852176 | I148: -23.11723298 | J148: -2429.489153 | K148: 63.20423462 | L148: -2705.897341 | M148: 66.40107389 | N148: 0.0926704805 | O148: 3.776396857 | P148: 276.4081876 | Q148: -3.196839269 | R148: 293.8090298 | S148: -3.282631674 | T148: -0.001168374067 | U148: -0.1045742822 | V148: -17.40084219 | W148: 0.0857924057 | X148: -18.40084219 | Y148: 0.0857924057 | Z148: 2.353199224e-05 | AA148: 0.005047165562 | AB148: 315.2558294 | AC148: 0.9970625182 | AD148: 1.905888029e-05
C149: 321.560946 | D149: -0.02441464517 | E149: 1.001535523 | F149: 33.71800528 | G149: 0.01332715367 | H149: -19.87599382 | I149: -27.17287785 | J149: -2770.272317 | K149: 70.31694434 | L149: -3071.496812 | M149: 73.72004975 | N149: 0.1008676167 | O149: 4.202582124 | P149: 301.2244954 | Q149: -3.403105418 | R149: 319.3687317 | S149: -3.490613671 | T149: -0.001218039484 | U149: -0.1114427897 | V149: -18.14423621 | W149: 0.08750825381 | X149: -19.14423621 | Y149: 0.08750825381 | Z149: 2.353199224e-05 | AA149: 0.005148108874 | AB149: 321.560946 | AC149: 0.9971931068 | AD149: 1.885657818e-05
C150: 327.992165 | D150: -0.02333715574 | E150: 1.001624781 | F150: 39.19255984 | G150: 0.01410121619 | H150: -22.6544733 | I150: -31.90379622 | J150: -3157.111294 | K150: 78.20413958 | L150: -3485.283157 | M150: 81.82634816 | N150: 0.109763801 | O150: 4.675241354 | P150: 328.1718633 | Q150: -3.622208585 | R150: 347.0895267 | S150: -3.711467004 | T150: -0.001269711384 | U150: -0.1187410593 | V150: -18.91766336 | W150: 0.08925841889 | X150: -19.91766336 | Y150: 0.08925841889 | Z150: 2.353199224e-05 | AA150: 0.005251071051 | AB150: 327.992165 | AC150: 0.9973168168 | AD150: 1.855855551e-05
C151: 334.5520083 | D151: -0.02231551462 | E151: 1.001697894 | F151: 45.53235015 | G151: 0.01473521816 | H151: -25.8076263 | I151: -37.41843252 | J151: -3596.078964 | K151: 86.94855168 | L151: -3953.508373 | M151: 90.80349042 | N151: 0.1194176001 | O151: 5.199342888 | P151: 357.4294092 | Q151: -3.854938737 | R151: 377.1517462 | S151: -3.945982324 | T151: -0.001323470829 | U151: -0.1264955829 | V151: -19.72233696 | W151: 0.09104358727 | X151: -20.72233696 | Y151: 0.09104358727 | Z151: 2.353199224e-05 | AA151: 0.005356092472 | AB151: 334.5520083 | AC151: 0.9974341289 | AD151: 1.817969669e-05
C152: 341.2430484 | D152: -0.02134591757 | E152: 1.001756622 | F152: 52.87155715 | G152: 0.01524443977 | H152: -29.38478802 | I152: -43.84222483 | J152: -4094.036409 | K152: 96.64165325 | L152: -4483.227564 | M152: 100.7437875 | N152: 0.1298924472 | O152: 5.780380249 | P152: 389.1911555 | Q152: -4.102134276 | R152: 409.7506749 | S152: -4.194998735 | T152: -0.001379402156 | U152: -0.1347344779 | V152: -20.55951937 | W152: 0.09286445901 | X152: -21.55951937 | Y152: 0.09286445901 | Z152: 2.353199224e-05 | AA152: 0.005463214322 | AB152: 341.2430484 | AC152: 0.9975454777 | AD152: 1.77337367e-05
C153: 348.0679094 | D153: -0.02042491469 | E153: 1.001802547 | F153: 61.3649006 | G153: 0.01564262884 | H153: -33.44169118 | I153: -51.32022418 | J153: -4658.734182 | K153: 107.3845759 | L153: -5082.401445 | M153: 111.7492609 | N153: 0.1412570435 | O153: 6.424427297 | P153: 423.6672634 | Q153: -4.364685009 | R153: 445.0977873 | S153: -4.459406757 | T153: -0.001437593108 | U153: -0.1434875862 | V153: -21.43052395 | W153: 0.09472174819 | X153: -22.43052395 | Y153: 0.09472174819 | Z153: 2.353199224e-05 | AA153: 0.005572478608 | AB153: 348.0679094 | AC153: 0.9976512574 | AD153: 1.723320384e-05
C154: 355.0292676 | D154: -0.01954936835 | E154: 1.001837094 | F154: 71.19075484 | G154: 0.01594215721 | H154: -38.04128767 | I154: -60.02011293 | J154: -5298.926514 | K154: 119.2891241 | L154: -5760.011882 | M154: 123.9326594 | N154: 0.153585795 | O154: 7.138199154 | P154: 461.0853689 | Q154: -4.643535293 | R154: 483.422086 | S154: -4.740151476 | T154: -0.001498134974 | U154: -0.1527865803 | V154: -22.33671712 | W154: 0.09661618316 | X154: -23.33671712 | Y154: 0.09661618316 | Z154: 2.353199224e-05 | AA154: 0.00568392818 | AB154: 355.0292676 | AC154: 0.9977518267 | AD154: 1.668940925e-05
C155: 362.1298529 | D155: -0.01871641698 | E155: 1.001861547 | F155: 82.55473433 | G155: 0.01615416013 | H155: -43.25467487 | I155: -70.13568276 | J155: -6024.500084 | K155: 132.4788949 | L155: -6526.192114 | M155: 137.4185823 | N155: 0.1669592838 | O155: 7.929119506 | P155: 501.6920295 | Q155: -4.939687378 | R155: 524.97155 | S155: -5.038235885 | T155: -0.001561122732 | U155: -0.1626650755 | V155: -23.27952049 | W155: 0.09854850682 | X155: -24.27952049 | Y155: 0.09854850682 | Z155: 2.353199224e-05 | AA155: 0.005797606744 | AB155: 362.1298529 | AC155: 0.9978475128 | AD155: 1.611247018e-05
C156: 369.37245 | D156: -0.01792344386 | E156: 1.001877061 | F156: 95.6938195 | G156: 0.0162886607 | H156: -49.16214022 | I156: -81.89084177 | J156: -6846.619223 | K156: 147.0905153 | L156: -7392.373513 | M156: 152.3447202 | N156: 0.1814647794 | O156: 8.805394943 | P156: 545.7542904 | Q156: -5.254204952 | R156: 570.0147035 | S156: -5.354724429 | T156: -0.001626655196 | U156: -0.1731587482 | V156: -24.26041312 | W156: 0.100519477 | X156: -25.26041312 | Y156: 0.100519477 | Z156: 2.353199224e-05 | AA156: 0.005913558879 | AB156: 369.37245 | AC156: 0.9979386148 | AD156: 1.551135687e-05
C157: 376.759899 | D157: -0.01716804995 | E157: 1.001884676 | F157: 110.8811039 | G157: 0.01635468109 | H157: -55.85433897 | I157: -95.54423038 | J157: -7777.889617 | K157: 163.2750078 | L157: -8371.450997 | M157: 168.8632247 | N157: 0.1971967914 | O157: 9.776097071 | P157: 593.5613797 | Q157: -5.588216901 | R157: 618.8423135 | S157: -5.690746767 | T157: -0.00169483517 | U157: -0.184305463 | V157: -25.28093381 | W157: 0.1025298665 | X157: -26.28093381 | Y157: 0.1025298665 | Z157: 2.353199224e-05 | AA157: 0.006031830056 | AB157: 376.759899 | AC157: 0.9980254073 | AD157: 1.489395515e-05
C158: 384.295097 | D158: -0.01644803036 | E158: 1.001885329 | F158: 128.4312561 | G158: 0.01636034198 | H158: -63.43362199 | I158: -111.3945382 | J158: -8832.542885 | K158: 181.1993002 | L158: -9477.969429 | M158: 187.1422215 | N158: 0.2142576685 | O158: 10.85125321 | P158: 645.426544 | Q158: -5.942921304 | R158: 671.7692276 | S158: -6.047501768 | T158: -0.001765769616 | U158: -0.1961454063 | V158: -26.34268353 | W158: 0.1045804638 | X158: -27.34268353 | Y158: 0.1045804638 | Z158: 2.353199224e-05 | AA158: 0.006152466657 | AB158: 384.295097 | AC158: 0.9981081423 | AD158: 1.426713886e-05
C159: 391.9809989 | D159: -0.01576135387 | E159: 1.001879863 | F159: 148.7068031 | G159: 0.01631295174 | H159: -72.01553282 | I159: -129.7866275 | J159: -10026.64466 | K159: 201.0478922 | L159: -10728.3337 | M159: 207.3674818 | N159: 0.2327582462 | O159: 12.04194657 | P159: 701.6890355 | Q159: -6.319589672 | R159: 729.1363635 | S159: -6.426261745 | T159: -0.001839569814 | U159: -0.2087212282 | V159: -27.44732795 | W159: 0.1066720731 | X159: -28.44732795 | Y159: 0.1066720731 | Z159: 2.353199224e-05 | AA159: 0.00627551599 | AB159: 391.9809989 | AC159: 0.9981870525 | AD159: 1.363684755e-05
C160: 399.8206189 | D160: -0.01510614496 | E160: 1.001869036 | F160: 172.1253588 | G160: 0.01621908626 | H160: -81.73049522 | I160: -151.1185847 | J160: -11378.32917 | K160: 223.0246961 | L160: -12141.04543 | M160: 229.7442676 | N160: 0.252818549 | O160: 13.36042689 | P160: 762.7162629 | Q160: -6.719571437 | R160: 791.3128629 | S160: -6.828376952 | T160: -0.001916351539 | U160: -0.2220781942 | V160: -28.5966 | W160: 0.1088055146 | X160: -29.5966 | Y160: 0.1088055146 | Z160: 2.353199224e-05 | AA160: 0.00640102631 | AB160: 399.8206189 | AC160: 0.9982623523 | AD160: 1.300816613e-05
C161: 407.8170313 | D161: -0.01448066814 | E161: 1.001853531 | F161: 199.1679393 | G161: 0.01608466073 | H161: -92.72571574 | I161: -175.8498402 | J161: -12908.06368 | K161: 247.3550708 | L161: -13736.9698 | M161: 254.4993696 | N161: 0.2745685496 | O161: 14.82023269 | P161: 828.9061202 | Q161: -7.144298733 | R161: 858.6984229 | S161: -7.255280358 | T161: -0.001996235246 | U161: -0.2362643445 | V161: -29.79230264 | W161: 0.1109816249 | X161: -30.79230264 | Y161: 0.1109816249 | Z161: 2.353199224e-05 | AA161: 0.006529046836 | AB161: 407.8170313 | AC161: 0.9983342404 | AD161: 1.238540406e-05
C162: 415.9733719 | D162: -0.01388331412 | E162: 1.001833961 | F162: 230.388527 | G162: 0.01591499398 | H162: -105.1673282 | I162: -204.510517 | J162: -14638.94658 | K162: 274.2880671 | L162: -15539.63609 | M162: 281.8833585 | N162: 0.2981489913 | O162: 16.43632618 | P162: 900.6895081 | Q162: -7.595291453 | R162: 931.7258198 | S162: -7.70849271 | T162: -0.002079346255 | U162: -0.2513306644 | V162: -31.03631166 | W162: 0.1132012574 | X162: -32.03631166 | Y162: 0.1132012574 | Z162: 2.353199224e-05 | AA162: 0.006659627773 | AB162: 415.9733719 | AC162: =SQRT(((AB162/B$32-B$32/AB162)^2*B$33*B$33+(B$34)^2)/((AB162/B$32-B$32/AB162)^2*B$33*B$33+1)/((1-B$36*B$36/AB162/AB162)^2+(B$36/AB162/B$37)^2)*((B$40)^2+(AB162/B$39)^2)/(1+(AB162/B$39)^2))*SQRT(1/((1-B$36*B$36/AB162/AB162)^2+(B$36/AB162/B$37*2.41)^2)) -> 0.9984029011 | AD162: 1.177217226e-05
C163: 424.2928393 | D163: -0.01331258776 | E163: 1.001810879 | F163: 266.4250716 | G163: 0.01571486645 | H163: -119.2428112 | I163: -237.7121929 | J163: -16597.04338 | K163: 304.0989081 | L163: -17575.57644 | M163: 312.1730707 | N163: 0.3237122778 | O163: 18.2252424 | P163: 978.5330626 | Q163: -8.074162624 | R163: 1010.863641 | S163: -8.189627907 | T163: -0.002165814949 | U163: -0.2673312646 | V163: -32.33057866 | W163: 0.1154652825 | X163: -33.33057866 | Y163: 0.1154652825 | Z163: 2.353199224e-05 | AA163: 0.006792820329 | AB163: 424.2928393 | AC163: 0.9984685056 | AD163: 1.117145657e-05
C164: 432.7786961 | D164: -0.01276709726 | E164: 1.001784779 | F164: 308.0121425 | G164: 0.01548857231 | H164: -135.1637127 | I164: -276.1602904 | J164: -18811.76547 | K164: 337.091729 | L164: -19874.70758 | M164: 345.6743531 | N164: 0.3514234373 | O164: 20.20525385 | P164: 1062.94211 | Q164: -8.582624114 | R164: 1096.619244 | S164: -8.700398702 | T164: -0.002255776978 | U164: -0.2843235727 | V164: -33.67713403 | W164: 0.1177745881 | X164: -34.67713403 | Y164: 0.1177745881 | Z164: 2.353199224e-05 | AA164: 0.006928676735 | AB164: 432.7786961 | AC164: 0.9985312133 | AD164: 1.058568702e-05
C165: 441.43427 | D165: -0.01224554477 | E165: 1.001756106 | F165: 355.9954799 | G165: 0.01523996638 | H165: -153.1687216 | I165: -320.6683361 | J165: -21316.29696 | K165: 373.6026022 | L165: -22470.76083 | M165: 382.7250949 | N165: 0.3814611653 | O165: 22.39655232 | P165: 1154.463864 | Q165: -9.122492677 | R165: 1189.541954 | S165: -9.242622757 | T165: -0.002349373472 | U165: -0.3023685359 | V165: -35.07809025 | W165: 0.1201300799 | X165: -36.07809025 | Y165: 0.1201300799 | Z165: 2.353199224e-05 | AA165: 0.00706725027 | AB165: 441.43427 | AC165: 0.9985911729 | AD165: 1.001680238e-05
C166: 450.2629554 | D166: -0.01174671794 | E166: 1.00172526 | F166: 411.3487289 | G166: 0.01497250646 | H166: -173.5271288 | I166: -372.1743744 | J166: -24148.07585 | K166: 414.002879 | L166: -25401.76674 | M166: 423.6985754 | N166: 0.414018954 | O166: 24.82144974 | P166: 1253.69089 | Q166: -9.695696382 | R166: 1290.226535 | S166: -9.818229063 | T166: -0.002446751266 | U166: -0.3215308369 | V166: -36.53564509 | W166: 0.1225326815 | X166: -37.53564509 | Y166: 0.1225326815 | Z166: 2.353199224e-05 | AA166: 0.007208595275 | AB166: 450.2629554 | AC166: 0.9986485232 | AD166: 9.466309783e-06
C167: 459.2682145 | D167: -0.01126948244 | E167: 1.001692598 | F167: 475.1926833 | G167: 0.01468929148 | H167: -196.5427292 | I167: -431.7598564 | J167: -27349.33625 | K167: 458.7028796 | L167: -28710.6011 | M167: 469.007161 | N167: 0.4493063143 | O167: 27.5046 | P167: 1361.264852 | Q167: -10.30428142 | R167: 1399.316938 | S167: -10.42926476 | T167: -0.002548063122 | U167: -0.3418791226 | V167: -38.05208516 | W167: 0.1249833351 | X167: -39.05208516 | Y167: 0.1249833351 | Z167: 2.353199224e-05 | AA167: 0.007352767181 | AB167: 459.2682145 | AC167: 0.9987033942 | AD167: 8.93533937e-06
C168: 468.4535788 | D168: -0.01081277537 | E168: 1.00165844 | F168: 548.8174136 | G168: 0.01439309594 | H168: -222.5582178 | I168: -500.6713761 | J168: -30967.7195 | K168: 508.1559685 | L168: -32445.60007 | M168: 519.1063878 | N168: 0.4875500997 | O168: 30.47324387 | P168: 1477.880572 | Q168: -10.95041935 | R168: 1517.510361 | S168: -11.07790235 | T168: -0.002653467977 | U168: -0.3634862466 | V168: -39.6297894 | W168: 0.1274830018 | X168: -40.6297894 | Y168: 0.1274830018 | Z168: 2.353199224e-05 | AA168: 0.007499822524 | AB168: 468.4535788 | AC168: 0.9987559078 | AD168: 8.424694016e-06
C169: 477.8226504 | D169: -0.01037559925 | E169: 1.001623073 | F169: 633.7077122 | G169: 0.01408640106 | H169: -251.9601457 | I169: -580.3456829 | J169: -35056.96293 | K169: 562.8630555 | L169: -36661.25335 | M169: 574.4994702 | N169: 0.528995938 | O169: 33.75747953 | P169: 1604.290417 | Q169: -11.63641476 | R169: 1645.56165 | S169: -11.76644743 | T169: -0.002763131188 | U169: -0.3864295273 | V169: -41.27123289 | W169: 0.1300326619 | X169: -42.27123289 | Y169: 0.1300326619 | Z169: 2.353199224e-05 | AA169: 0.007649818975 | AB169: 477.8226504 | AC169: 0.9988061782 | AD169: 7.934894337e-06
C170: 487.3791034 | D170: -0.009957016734 | E170: 1.001586751 | F170: 731.5723499 | G170: 0.01377142282 | H170: -285.1845039 | I170: -672.4384607 | J170: -39677.676 | K170: 623.3775661 | L170: -41418.98506 | M170: 635.7422795 | N170: 0.5739097827 | O170: 37.39056137 | P170: 1741.309061 | Q170: -12.36471342 | R170: 1784.288052 | S170: -12.49734674 | T170: -0.002877224793 | U170: -0.4107910206 | V170: -42.9789907 | W170: 0.1326333151 | X170: -43.9789907 | Y170: 0.1326333151 | Z170: 2.353199224e-05 | AA170: 0.007802815354 | AB170: 487.3791034 | AC170: 0.9988543129 | AD170: 7.466219163e-06
C171: 497.1266855 | D171: -0.009556145832 | E171: 1.001549704 | F171: 844.3777144 | G171: 0.01345013743 | H171: -322.7230166 | I171: -778.8574383 | J171: -44898.21494 | K171: 690.3109306 | L171: -46788.03356 | M171: 703.4488415 | N171: 0.6225795912 | O171: 41.40922991 | P171: 1889.818629 | Q171: -13.13791093 | R171: 1934.574371 | S171: -13.27319691 | T171: -0.002995927779 | U171: -0.4366578104 | V171: -44.75574192 | W171: 0.1352859814 | X171: -45.75574192 | Y171: 0.1352859814 | Z171: 2.353199224e-05 | AA171: 0.007958871662 | AB171: 497.1266855 | AC171: 0.998900413 | AD171: 7.018741779e-06
C172: 507.0692192 | D172: -0.00917215562 | E172: 1.001512133 | F172: 974.3864862 | G172: 0.01312430431 | H172: -365.130233 | I172: -901.8004825 | J172: -50795.66841 | K172: 764.3386463 | L172: -52846.44267 | M172: 778.2974082 | N172: 0.6753171417 | O172: 45.85407614 | P172: 2050.774268 | Q172: -13.95876187 | R172: 2097.378542 | S172: -14.09675357 | T172: -0.003119426367 | U172: -0.4641223166 | V172: -46.60427389 | W172: 0.137991701 | X172: -47.60427389 | Y172: 0.137991701 | Z172: 2.353199224e-05 | AA172: 0.008118049095 | AB172: 507.0692192 | AC172: 0.9989445739 | AD172: 6.592362203e-06
C173: 517.2106036 | D173: -0.008804262375 | E173: 1.00147422 | F173: 1124.202103 | G173: 0.01279548688 | H173: -413.0315185 | I173: -1043.799419 | J173: -57456.96819 | K173: 846.2069717 | L173: -59682.17837 | M173: 861.0371612 | N173: 0.7324600008 | O173: 50.76994395 | P173: 2225.210179 | Q173: -14.83018957 | R173: 2273.737666 | S173: -14.9709411 | T173: -0.003247914297 | U173: -0.4932826214 | V173: -48.52748656 | W173: 0.1407515351 | X173: -49.52748656 | Y173: 0.1407515351 | Z173: 2.353199224e-05 | AA173: 0.008280410077 | AB173: 517.2106036 | AC173: 0.9989868854 | AD173: 6.186835807e-06
C174: 527.5548156 | D174: -0.008451726081 | E174: 1.001436125 | F174: 1296.819877 | G174: 0.01246507144 | H174: -467.1320595 | I174: -1207.77044 | J174: -64980.14073 | K174: 936.740319 | L174: -67394.38688 | M174: 952.4956154 | N174: 0.7943736522 | O174: 56.20637448 | P174: 2414.24615 | Q174: -15.75529641 | R174: 2464.774547 | S174: -15.89886297 | T174: -0.003381593139 | U174: -0.5242428162 | V174: -50.52839702 | W174: 0.1435665658 | X174: -51.52839702 | Y174: 0.1435665658 | Z174: 2.353199224e-05 | AA174: 0.008446018278 | AB174: 527.5548156 | AC174: 0.9990274323 | AD174: 5.801798586e-06
C175: 538.105912 | D175: -0.008113847271 | E175: 1.001397987 | F175: 1495.685764 | G175: 0.01213428418 | H175: -528.2270105 | I175: -1397.072086 | J175: -73475.71736 | K175: 1036.849418 | L175: -76094.81198 | M175: 1053.586793 | N175: 0.8614538023 | O175: 62.21809682 | P175: 2619.094622 | Q175: -16.7373748 | R175: 2671.704766 | S175: -16.8838127 | T175: -0.003520672607 | U175: -0.5571133697 | V175: -52.61014426 | W175: 0.1464378971 | X175: -53.61014426 | Y175: 0.1464378971 | Z175: 2.353199224e-05 | AA175: 0.008614938644 | AB175: 538.105912 | AC175: 0.999066295 | AD175: 5.436789366e-06
C176: 548.8680302 | D176: -0.007789964163 | E176: 1.001359933 | F176: 1724.763919 | G176: 0.01180420669 | H176: -597.2129273 | I176: -1615.571937 | J176: -83068.32337 | K176: 1147.540334 | L176: -85909.39171 | M176: 1165.320253 | N176: 0.9341288746 | O176: 68.86556998 | P176: 2841.068338 | Q176: -17.77991881 | R176: 2895.844332 | S176: -17.92928547 | T176: -0.003665370885 | U176: -0.592011518 | V176: -54.77599408 | W176: 0.149366655 | X176: -55.77599408 | Y176: 0.149366655 | Z176: 2.353199224e-05 | AA176: 0.008787237417 | AB176: 548.8680302 | AC176: 0.9991035493 | AD176: 5.09126923e-06
C177: 559.8453908 | D177: -0.007479450055 | E177: 1.001322072 | F177: 1988.614355 | G177: 0.01147578995 | H177: -675.1006494 | I177: -1867.723311 | J177: -93898.46844 | K177: 1269.924417 | L177: -96980.05707 | M177: 1288.811054 | N177: 1.012862711 | O177: 76.21558123 | P177: 3081.588632 | Q177: -18.88663651 | R177: 3138.617976 | S177: -19.0389905 | T177: -0.003815914974 | U177: -0.6290616792 | V177: -57.02934425 | W177: 0.1523539881 | X177: -58.02934425 | Y177: 0.1523539881 | Z177: 2.353199224e-05 | AA177: 0.008962982165 | AB177: 559.8453908 | AC177: 0.9991392671 | AD177: 4.764638447e-06

Sheet 使い方の説明
A1: Vas | B1: 1 | D1: ユニット基準容積：Vas基準の場合は１とし、V1-V3はVasとの比の値となる。
A2: Fo | B2: 1 | D2: ユニットのｆo | F2: 実際の周波数を入れる場合はグラフの周波数軸指定や他の設定値も同時に変更が必要。
A3: Qo | B3: 0.41 | D3: ユニットのQo
A4: V1 | B4: 0.4685833194 | D4: 第一キャビ容積 | F4: 最初に適当な値を記入すると、自動調整される
A5: Fb1 | B5: 1.35452549 | D5: 第一ダクト共振Ｆ | F5: 最初に適当な値を記入すると、自動調整される
A6: Qb1 | B6: 25 | D6: 第一ダクト共振Ｑ | F6: 適当な値を記入。25～100が適正値（ダクトの太さや形状による） Ｑの値は調整されない。
A7: V2 | B7: 1.821895466 | D7: 第２キャビ容積
A8: Fb2 | B8: 1.01522505 | D8: 第２ダクト共振Ｆ
A9: Qb2 | B9: 40 | D9: 第２ダクト共振Ｑ | F9: 上と同じ。段数が１（普通のバスレフ）では、下のように影響が十分無視できる値を入れる。
A10: V3 | B10: 2.308998896 | D10: 第３キャビ容積 | G10: V2, V3 | H10: 1e-09
A11: Fb3 | B11: 0.9898171767 | D11: 第３ダクト共振Ｆ | G11: fb2, fb3 | H11: 1000000000
A12: Qb3 | B12: 50 | D12: 第３ダクト共振Ｑ | G12: Qb2, Qb3 | H12: 1000000000
A13: Co | B13: 1 | D13: （白地の所は、計算の為の数値なのでそのまま）
A14: Lo | B14: 1
A15: Ro | B15: 2.43902439
A16: C1 | B16: 0.4685833194
A17: L1 | B17: 1.163158266
A18: R1 | B18: 0.05251758399
A19: C2 | B19: 1.821895466
A20: L2 | B20: 0.5325395844
A21: R2 | B21: 0.01081295052
A22: C3 | B22: 2.308998896
A23: L3 | B23: 0.4420448169
A24: R3 | B24: 0.004375435527
A25: henka | B25: 0.1 | D25: 定数調整の変化幅（比率）初期値を設定。荒く調整する時は0.1、さらに微調整する場合は0.01→0.001と小さくする。
A26: point | B26: 0.02581397105 | D26: 目標のカーブからの偏差（二乗値の合計）が計算される →自動調整後に右のグラフに変化の様子を表示
A27: Fmin | B27: 0.5 | D27: 偏差を評価する周波数下限値。 0.2～1.0foの間で設定する（グラフはfmin/2～16fminの周波数範囲となる）
A28: Fmax | B28: 4 | D28: 偏差を評価する周波数上限値。 グラフの線が切れている所に設定するとエラーになる。
A29: 繰返し | B29: 5 | D29: 定数微調整の繰り返し回数。５～20が適当。調整完了すれば指定回数の前でも終了。
A30: rms(dB) | B30: 0.1344998956 | D30: 偏差のrms(dB)値
A31: 中域補正
A32: fp | B32: 1.8 | D32: 目標カーブのピークやディップの中心周波数を設定
A33: Qp | B33: 5 | D33: ピークやディップのＱを設定。大きくすると幅が狭くなる。
A34: gain | B34: 0.85 | D34: １がフラット。数値でfpでのレベルを設定
A35: 4次HPF
A36: fc1 | B36: 0.53 | D36: 目標カーブの低域カットオフ周波数を設定。 Fminの値とほぼ同じにすると良い。
A37: Qc1 | B37: 1.8 | D37: 低域肩特性のＱを設定。1.3で最大平坦（fc1で-3dB)
A38: 低域レベル
A39: fc2 | B39: 0.77 | D39: 目標カーブの低域全体の形とレベルを設定。fc1と近い値にするとgainとQc1で肩特性のカーブを微調整できる。
A40: gain | B40: 0.1 | D40: １がフラット。数値で0.1fc2でのレベルを設定
A42: 段数 | B42: 3 | D42: バスレフ段数を指定。１にするとV2～Fb3までの４つ、２ではV3とFb3は調整されない。
A43: 集計数 | B43: 105 | D43: pointを集計する行数
